Cogmind - Beta 13 X1 @@@ ROGUE MODE // 2023.11.11 @ 23:24:06 Player: MTF Result: Escaped singularity! Performance ------------- Evolutions (9) 4500 Regions Visited (40) 8000 Robots Destroyed (312) 1560 Value Destroyed (12360) 12360 Prototype IDs (298) 5960 Alien Tech Used (12) 2400 Bonus (50762) 50762 TOTAL SCORE: 85542 Bonus ------- High Alert Combat Kills 218 Follower Combat Kills 5189 Network Hubs Disabled 400 Met Data Miner 300 Met Zhirov 300 Met Warlord at Base 500 MAIN.C Attacked Warlord 500 Warlord Defense Kills 254 Built Enhanced Grunts 300 Found Hidden Lab 3000 Met R17 at Research 2000 Met Warlord at Research 2000 Destroyed MAIN.C Guards 500 Met MAIN.C 5000 Destroyed MAIN.C Shell 5000 Destroyed MAIN.C 10000 Met Warlord at Command 2000 Met Architect 300 Destroyed A8 300 Destroyed A6 400 Destroyed A5 500 Destroyed Architect 15000 Win 3000 Friendly Fire -6199 Cogmind --------- Core Integrity 637/1600 Matter 290/300 Energy 194/380 System Corruption 1% Temperature Cool (12) Movement Hovering (32) Location Near Former Tau Ceti IV Parts ------- > --- POWER (2) -------- Zero-point Reactor Zero-point Reactor > --- PROPULSION (7) --- Cooled Linear Gravjet Combat Linear Gravjet Combat Linear Gravjet Combat Linear Gravjet Combat Linear Gravjet Combat Linear Gravjet Combat Linear Gravjet > --- UTILITY (12) ----- Large Storage Unit Experimental Melee Analysis Suite Experimental Core Analyzer Improved Armor Integrity Analyzer Femtoactuators Advanced Actuator Array Advanced Force Booster Experimental Reaction Control System Experimental Phase Shifter Experimental Powered Armor Experimental Powered Armor Experimental Force Field > --- WEAPON (4) ------- Nanosword Nanosword Nanosword Nanosword > --- INVENTORY (15) --- Combat Antigrav System Combat Antigrav System Advanced Energy Well (500) Advanced Energy Well (500) Experimental Energy Well (600) Advanced Melee Analysis Suite Advanced Melee Analysis Suite Experimental Core Analyzer Experimental Actuator Array Advanced Reaction Control System Experimental Phase Shifter Microwarp Drive Peak State ------------ > --- POWER ------------ Zero-point Reactor Zero-point Reactor > --- PROPULSION ------- Cooled Linear Gravjet Combat Linear Gravjet Combat Linear Gravjet Combat Linear Gravjet Combat Linear Gravjet Combat Linear Gravjet Combat Linear Gravjet > --- UTILITY ---------- Large Storage Unit Experimental Melee Analysis Suite Experimental Core Analyzer Improved Armor Integrity Analyzer Femtoactuators Advanced Actuator Array Advanced Force Booster Experimental Reaction Control System Experimental Phase Shifter Experimental Powered Armor Experimental Powered Armor Experimental Force Field > --- WEAPON ----------- Nanosword Nanosword Nanosword Nanosword > --- INVENTORY -------- Combat Antigrav System Combat Antigrav System Advanced Energy Well Advanced Energy Well Experimental Energy Well Advanced Melee Analysis Suite Advanced Melee Analysis Suite Experimental Core Analyzer Experimental Actuator Array Advanced Reaction Control System Experimental Phase Shifter Integrity Redistributor Microwarp Drive [Rating: 235] Favorites ----------- Power Improved Quantum Reactor Engine Ion Engine Power Core Micro Nuclear Core Reactor Improved Quantum Reactor Propulsion Combat Antigrav System Treads Light Treads Leg Aluminum Leg Hover Unit Combat Antigrav System Flight Unit Improved VTOL Module Utility Advanced Hacking Suite Device Combat Drone Bay Storage Large Storage Unit Processor Advanced Signal Interpreter Hackware Advanced Hacking Suite Protection Heavy Regenerative Plating Artifact Microwarp Drive Weapon Nanosword Energy Gun Subdweller Laser Energy Cannon Cooled Plasma Cannon Ballistic Gun Assault Rifle Ballistic Cannon Improved Light Cannon Launcher Mini Smartbomb Launcher Special Weapon Mining Laser Impact Weapon Shock Maul Slashing Weapon Nanosword Piercing Weapon Heavy Pick Special Melee Weapon Improved Datajack Build | -11 -10 -10 -10 -8 -8 -7 -7 -7 -7 -7 -7 -6 -6 -6 -6 -6 -6 -5 -5 -5 -5 -5 -5 -4 -4 -4 -4 -4 -4 -4 -3 -3 -3 -3 -2 -2 -2 -1 -1 -1 ------- Run | Jun Mat Min Sub Mat Sto Fac Was Fac Low Low Dat Pro Fac Ext Cet Arc Hub Fac Was Fac Upp Upp War Pro Fac Was Fac Upp Upp Zhi Pro Res Arm Lab Res Qua Sec Acc Com Ac0 Slots Evolved 18 | . . . . 4 . 2 . . . . . . 2 . . . . 2 . . . . . . 2 . . . . . . 2 . . 2 . . 2 . . Power 1 | . . . . . . . . . . . . . . . . . . 1 . . . . . . . . . . . . . . . . . . . . . . Propulsion 5 | . . . . 2 . 1 . . . . . . . . . . . 1 . . . . . . . . . . . . . 1 . . . . . . . . Utility 10 | . . . . 2 . 1 . . . . . . 2 . . . . . . . . . . . 2 . . . . . . 1 . . 1 . . 1 . . Weapon 2 | . . . . . . . . . . . . . . . . . . . . . . . . . . . . . . . . . . . 1 . . 1 . . Parts Attached 705 | 4 4 . 14 28 45 5 . 22 5 . 1 . 41 11 2 11 6 57 2 31 4 5 12 2 13 . 41 18 3 12 9 22 43 7 24 39 42 50 56 14 Power 29 | . . . 1 4 3 . . 2 . . . . . . . . . 3 1 1 . . 4 . . . . . . 2 . . . . 1 . . . 7 . Engine 7 | . . . 1 3 1 . . . . . . . . . . . . . . . . . . . . . . . . . . . . . . . . . 2 . Core 8 | . . . . 1 1 . . 2 . . . . . . . . . 3 1 . . . . . . . . . . . . . . . . . . . . . Reactor 14 | . . . . . 1 . . . . . . . . . . . . . . 1 . . 4 . . . . . . 2 . . . . 1 . . . 5 . Propulsion 102 | 2 . . 2 6 20 1 . 3 . . . . 4 . 1 1 . 13 . 2 . . . . 2 . 3 . . 7 3 1 4 . 1 9 . 4 9 4 Treads 24 | 2 . . 2 5 15 . . . . . . . . . . . . . . . . . . . . . . . . . . . . . . . . . . . Leg . | . . . . . . . . . . . . . . . . . . . . . . . . . . . . . . . . . . . . . . . . . Wheel . | . . . . . . . . . . . . . . . . . . . . . . . . . . . . . . . . . . . . . . . . . Hover 54 | . . . . . . . . . . . . . . . . . . 6 . 1 . . . . 2 . 3 . . 7 3 1 4 . 1 9 . 4 9 4 Flight 24 | . . . . 1 5 1 . 3 . . . . 4 . 1 1 . 7 . 1 . . . . . . . . . . . . . . . . . . . . Utility 417 | 1 2 . 2 11 9 3 . 12 3 . . . 24 4 1 9 2 33 . 24 4 5 4 1 11 . 35 18 1 2 5 19 31 5 14 22 24 30 38 8 Device 295 | 1 . . 1 3 3 . . 8 2 . . . 14 3 . 3 . 21 . 18 4 3 2 1 10 . 29 15 1 2 5 16 25 1 11 20 19 25 23 6 Storage 16 | . 1 . . 1 1 . . 1 . . . . 1 . . 1 . 3 . . . . . . . . 1 . . . . . . . 1 . . 2 3 . Processor 28 | . . . . 2 . 2 . . . . . . 3 . . . . . . 2 . 1 1 . . . . 2 . . . 3 . . 2 1 1 2 6 . Hackware 24 | . . . . . . . . 2 . . . . . . . 2 1 8 . 2 . 1 . . 1 . 3 1 . . . . 2 1 . . . . . . Protection 52 | . 1 . 1 5 5 1 . 1 1 . . . 6 1 1 3 1 1 . 2 . . 1 . . . 2 . . . . . 4 3 . 1 2 1 6 2 Artifact 2 | . . . . . . . . . . . . . . . . . . . . . . . . . . . . . . . . . . . . . 2 . . . Weapon 157 | 1 2 . 9 7 13 1 . 5 2 . 1 . 13 7 . 1 4 8 1 4 . . 4 1 . . 3 . 2 1 1 2 8 2 8 8 18 16 2 2 Energy Gun 4 | . . . 1 1 1 . . . . . . . . . . . . . . . . . 1 . . . . . . . . . . . . . . . . . Energy Cannon 43 | . . . . . . . . . . . . . 2 . . 1 1 4 1 1 . . 1 . . . 1 . . 1 1 . 4 1 4 2 9 7 1 1 Ballistic Gun 10 | 1 . . 2 2 4 . . . . . . . . . . . . . . . . . . . . . . . . . . . 1 . . . . . . . Ballistic Cannon 3 | . . . . 2 1 . . . . . . . . . . . . . . . . . . . . . . . . . . . . . . . . . . . Launcher 18 | . 1 . 3 1 1 . . 1 1 . . . 2 4 . . 1 . . . . . 1 . . . 1 . 1 . . . . . . . . . . . Special Weapon 4 | . 1 . 3 . . . . . . . . . . . . . . . . . . . . . . . . . . . . . . . . . . . . . Impact Weapon 11 | . . . . . 5 . . 1 1 . . . 2 . . . . . . 1 . . . . . . . . . . . . . . . 1 . . . . Slashing Weapon 53 | . . . . 1 . . . . . . . . 2 3 . . 2 4 . 2 . . 1 1 . . 1 . 1 . . 2 3 1 4 5 9 9 1 1 Piercing Weapon 7 | . . . . . 1 1 . 1 . . . . 4 . . . . . . . . . . . . . . . . . . . . . . . . . . . Special Melee Weapon 4 | . . . . . . . . 2 . . 1 . 1 . . . . . . . . . . . . . . . . . . . . . . . . . . . Unidentified Prototypes 44 | . . . . 2 5 . . 3 . . . . 4 . . 4 . 1 . 5 . 1 4 . . . 3 . . 3 . 1 1 2 1 1 3 . . . Corrupted Parts 2 | . . . . . 1 . . . . . . . . . . . . 1 . . . . . . . . . . . . . . . . . . . . . . System Corruption 15 | . . . . . 13 . . . . . . . . . . . . 2 . . . . . . . . . . . . . . . . . . . . . . Parts Lost 15 | . . . 4 . 3 . . . . . . . . . . . 2 . 1 . . . . . . . . . . . . . . . . . 1 . 2 2 Power 2 | . . . . . . . . . . . . . . . . . . . 1 . . . . . . . . . . . . . . . . . . . 1 . Propulsion 2 | . . . 2 . . . . . . . . . . . . . . . . . . . . . . . . . . . . . . . . . . . . . Utility 10 | . . . 1 . 3 . . . . . . . . . . . 2 . . . . . . . . . . . . . . . . . . . 1 . 1 2 Weapon 1 | . . . 1 . . . . . . . . . . . . . . . . . . . . . . . . . . . . . . . . . . . . . Highest Loss Streak 2 | . . . 2 . 1 . . . . . . . . . . . 1 . 1 . . . . . . . . . . . . . . . . . 1 . 2 1 To Critical Strikes . | . . . . . . . . . . . . . . . . . . . . . . . . . . . . . . . . . . . . . . . . . Average Slot Usage (%) 94 | . 100 100 99 92 99 98 100 93 92 92 96 92 96 93 93 91 92 89 88 95 94 94 93 94 93 94 95 94 94 88 93 94 94 90 92 90 90 92 97 100 Engine 2 | . 14 14 14 8 6 . . . . . . . . . . . . 1 . . . . . . . . . . . . . . . . . . . . . . Core 1 | . . . . . . 7 7 7 7 7 7 7 6 6 6 6 6 5 11 10 5 5 1 . . . . . . . . . . . . . . . . . Reactor 4 | . . . . . 1 . . . . . . . . . . . . . . . 5 5 8 11 10 10 10 10 10 10 10 9 9 9 5 4 4 4 6 8 Treads 6 | . 28 28 27 32 35 . . . . . . . . . . . . . . . . . . . . . . . . . . . . . . . . . . . Hover 18 | . . . . . . . . . . . . . . . . . . 3 35 35 35 35 35 35 30 31 31 31 31 30 31 33 32 33 30 29 30 28 28 28 Flight 6 | . . . . . . 38 38 38 38 38 38 38 33 33 33 33 33 31 . . . . . . . . . . . . . . . . . . . . . . Device 10 | . 2 . 3 5 6 7 7 7 7 7 7 7 13 6 . 4 5 6 11 9 11 11 10 11 15 15 11 9 10 10 10 13 13 4 12 7 8 11 19 24 Storage 6 | . 14 14 14 9 9 7 7 7 7 7 7 7 6 6 6 6 6 5 5 5 5 5 5 5 5 5 5 5 5 5 5 4 4 4 4 4 4 4 3 4 Processor 7 | . . . . 5 8 13 15 7 7 7 7 7 13 20 20 15 13 5 5 6 5 5 5 5 5 5 5 5 5 5 5 4 4 4 4 8 7 8 14 12 Hackware 9 | . . . . . . . . 6 . . . . . . . 7 12 16 11 11 11 11 11 11 15 15 19 21 21 21 21 19 19 19 17 17 17 16 1 . Protection 5 | . 11 14 10 11 11 7 7 6 15 15 15 15 10 13 20 9 6 4 . 1 . . . . . . 2 . . . . . . 4 4 4 2 4 7 8 Energy Cannon 1 | . . . . . . . . . . . . . . . . . . . 1 6 5 5 4 5 5 5 4 5 5 . 4 3 3 . 2 . . 1 . . Ballistic Gun 2 | . 26 14 13 5 6 . . . . . . . . . . . . . . . . . . . . . . . . . . . . . . . . . . . Slashing Weapon 5 | . . . . . . . . . . . . . . 5 6 6 5 4 3 4 5 5 3 . 5 5 4 5 4 5 5 4 4 8 10 12 12 14 15 15 Naked Turns . | . . . . . . . . . . . . . . . . . . . . . . . . . . . . . . . . . . . . . . . . . Heaviest Build 124 | 14 31 31 38 110 113 24 24 25 27 25 26 25 27 26 27 28 29 49 57 72 72 72 93 93 94 94 96 93 93 80 93 95 82 87 106 108 114 124 119 112 Greatest Support 130 | 40 40 40 40 80 88 25 25 25 25 25 25 25 27 27 27 28 31 96 80 96 96 96 96 96 96 96 96 96 96 96 96 107 112 107 107 110 130 130 122 125 Greatest Overweight (x) 4 | . . . 1 1 1 . . 1 1 . 1 . . . . . . 1 . . . . . . 1 . . . . 1 . . . . . . 1 . 4 . Average Overweight (x) . | . . . . . . . . . . . . . . . . . . . . . . . . . . . . . . . . . . . . . . . . . Largest Inventory Capacity 25 | 8 15 15 15 25 25 10 10 10 10 10 10 10 10 10 10 10 10 15 15 15 15 15 15 15 15 15 15 15 15 15 15 15 15 15 20 20 20 25 20 15 Average Capacity 15 | 8 11 15 15 21 24 10 10 10 10 10 10 10 10 10 10 10 10 10 15 15 15 15 15 15 15 15 15 15 15 15 15 15 15 15 16 20 20 20 15 15 Most Carried 25 | 6 11 11 15 25 25 10 10 10 9 10 10 10 10 10 10 10 10 13 15 15 15 15 15 15 13 14 15 15 15 15 15 15 15 15 20 20 20 20 19 15 Average Carried 14 | 6 8 11 11 18 24 9 9 9 8 8 9 10 9 9 9 9 9 9 14 14 14 15 14 13 11 13 14 14 14 14 15 14 14 12 15 19 19 19 14 14 Final Capacity 25 | 8 15 15 15 25 10 10 10 10 10 10 10 10 10 10 10 10 10 15 15 15 15 15 15 15 15 15 15 15 15 15 15 15 15 15 20 20 20 20 15 15 Final Carried 25 | 6 11 11 15 25 10 10 10 9 8 10 10 10 10 10 10 10 8 13 14 15 15 15 15 13 12 14 15 15 15 15 15 15 15 15 20 20 19 19 15 13 Class Distribution -------------------- 30% | Wizard-Mutant 18% | Machinist-Mutant 13% | Mutant 9% | Scavenger-Mutant 6% | Sprinter 4% | Hacker-Mutant 3% | Scout 3% | Wizard-Scout 3% | Hacker-Sprinter Dominant Class ---------------- Mutant | -10/Materials Mutant | -10/Mines Mutant | -10/Subcaves Scavenger-Mutant | -8/Materials Scavenger-Mutant | -8/Storage Sprinter | -7/Factory Sprinter | -7/Waste Sprinter | -7/Factory Sprinter | -7/Lower Caves Sprinter | -7/Lower Caves Sprinter | -7/Data Miner Sprinter | -6/Proximity Caves Scout | -6/Factory Sprinter | -6/Extension Commander-Sprinter | -6/Cetus Hacker-Scout | -6/Archives Hacker-Scout | -6/Hub_04(d) Hacker-Sprinter | -5/Factory Machinist-Mutant | -5/Waste Machinist-Mutant | -5/Factory Machinist-Mutant | -5/Upper Caves Machinist-Mutant | -5/Upper Caves Machinist-Mutant | -5/Warlord Machinist-Mutant | -4/Proximity Caves Hacker-Mutant | -4/Factory Hacker-Mutant | -4/Waste Wizard-Mutant | -4/Factory Wizard-Mutant | -4/Upper Caves Wizard-Mutant | -4/Upper Caves Wizard-Mutant | -4/Zhirov Wizard-Mutant | -3/Proximity Caves Wizard-Mutant | -3/Research Wizard-Mutant | -3/Armory Wizard-Mutant | -3/Lab Wizard-Mutant | -2/Research Wizard-Scout | -2/Quarantine Wizard-Mutant | -2/Section 7 Wizard-Mutant | -1/Access Machinist-Mutant | -1/Command Machinist-Mutant | -1/Access_0 Resources | -11 -10 -10 -10 -8 -8 -7 -7 -7 -7 -7 -7 -6 -6 -6 -6 -6 -6 -5 -5 -5 -5 -5 -5 -4 -4 -4 -4 -4 -4 -4 -3 -3 -3 -3 -2 -2 -2 -1 -1 -1 ----------- Run | Jun Mat Min Sub Mat Sto Fac Was Fac Low Low Dat Pro Fac Ext Cet Arc Hub Fac Was Fac Upp Upp War Pro Fac Was Fac Upp Upp Zhi Pro Res Arm Lab Res Qua Sec Acc Com Ac0 Matter Collected 9239 | 273 207 . 376 383 1099 23 73 245 51 12 . . 335 385 54 110 85 585 . 332 129 102 402 150 175 . 553 207 160 128 137 220 425 . 369 250 400 383 336 85 Remotely . | . . . . . . . . . . . . . . . . . . . . . . . . . . . . . . . . . . . . . . . . . Salvage Created 18518 | 127 501 . 347 728 1490 23 . 252 96 92 . . 862 745 212 352 178 1194 . 324 27 . 107 112 241 . 1320 . 178 313 189 725 324 . 205 403 1047 1016 3056 1732 Parts 846 | 8 35 . 28 38 79 5 . 3 7 1 . . 36 28 5 28 18 50 . 22 4 . 3 1 18 . 58 . 5 4 11 23 19 . 1 15 50 53 81 109 Haulers Intercepted 35 | . 2 . . 5 5 . . 3 . . . . 4 . . . . 4 . 1 . . . . . . 3 . . . . 6 . . . 1 . 1 . . Recyclers Shooed 8 | . . . . . 4 . . . . . . . . 2 . . . . . 1 . . . . . . 1 . . . . . . . . . . . . . Parts Field Recycled . | . . . . . . . . . . . . . . . . . . . . . . . . . . . . . . . . . . . . . . . . . Retrieved Matter . | . . . . . . . . . . . . . . . . . . . . . . . . . . . . . . . . . . . . . . . . . Parts Self-Destructed 201 | . . . 18 . . . . . 8 5 . 5 . . . . . . . . 28 21 . 16 . . . 40 13 3 44 . . . . . . . . . Prevented 1 | . . . . . . . . . 1 . . . . . . . . . . . . . . . . . . . . . . . . . . . . . . . Kills | -11 -10 -10 -10 -8 -8 -7 -7 -7 -7 -7 -7 -6 -6 -6 -6 -6 -6 -5 -5 -5 -5 -5 -5 -4 -4 -4 -4 -4 -4 -4 -3 -3 -3 -3 -2 -2 -2 -1 -1 -1 ------- Run | Jun Mat Min Sub Mat Sto Fac Was Fac Low Low Dat Pro Fac Ext Cet Arc Hub Fac Was Fac Upp Upp War Pro Fac Was Fac Upp Upp Zhi Pro Res Arm Lab Res Qua Sec Acc Com Ac0 Combat Hostiles Destroyed 162 | . 10 . 16 9 33 . . . 4 . . . 5 5 2 1 . . . . . . 3 3 2 . 11 . 3 . 2 . 5 . 2 2 10 8 9 17 Melee 61 | . . . . . 1 . . . . . . . 1 4 2 1 . . . . . . . . 2 . 5 . . . . . 5 . 1 2 9 6 6 16 Guns 27 | . 10 . 6 6 5 . . . . . . . . . . . . . . . . . . . . . . . . . . . . . . . . . . . Cannons 27 | . . . . 3 17 . . . . . . . . . . . . . . . . . . . . . 1 . 1 . 2 . . . . . 1 1 1 . AOE 39 | . . . 10 . 8 . . . 4 . . . 4 1 . . . . . . . . 3 3 . . 4 . 2 . . . . . . . . . . . Classes Destroyed 21 | 2 4 . 1 2 5 1 . . 1 1 . . 1 1 . . . . . . . . . . . . . . . . 1 . . . . 1 . . . . Worker 13 | . . . . 2 2 . . . . . . . 1 . . . 1 . . 1 . . . . 1 . 2 . . . . 1 . . . . 1 1 . . Builder 15 | . . . . . 2 . . . . . . . 1 2 . . 1 3 . 1 . . . . 1 . . . . . . 1 . . . . 1 2 . . Tunneler 10 | 2 1 . . . . . . . . . . . . . . . . 1 . 1 . . . . 1 . 3 . . . . . . . . . . 1 . . Hauler 35 | . 2 . . 5 5 . . 3 . . . . 4 . . . . 4 . 1 . . . . . . 3 . . . . 6 . . . 1 . 1 . . Recycler 21 | 1 . . . 1 1 . . 1 . . . . 2 3 . . . 4 . 1 . . . . . . 2 . . . . 1 . . . . 2 1 1 . Minesweeper 3 | . . . . . . . . . 2 . . . . . . . . . . . 1 . . . . . . . . . . . . . . . . . . . Mechanic 2 | . . . . . 1 . . . . . . . . . . . . 1 . . . . . . . . . . . . . . . . . . . . . . Operator 17 | . . . . . . 1 . . . . . . . 1 . 8 . . . . . . . . . . 2 . . . . 1 . . . 1 1 . 2 . Watcher 31 | . 2 . . . 1 . . . . . . . 1 3 1 . 4 3 . 2 . . . . 2 . 3 . . . . . 1 . . 3 2 2 1 . Swarmer 35 | . 3 . 7 . 2 . . . 4 . . . 4 1 . . . . . . . . 1 . . . 4 . . . . . 2 . . . 4 3 . . Grunt 38 | . 7 . 2 3 14 . . . . . . . . . . . . . . . . . 1 3 . . 1 . 3 . 1 . . . 1 . 1 1 . . Brawler 2 | . . . . . 1 . . . . . . . . . . . . . . . . . . . . . 1 . . . . . . . . . . . . . Duelist 4 | . . . . . 3 . . . . . . . . . . . . . . . . . 1 . . . . . . . . . . . . . . . . . Protector 1 | . . . . . 1 . . . . . . . . . . . . . . . . . . . . . . . . . . . . . . . . . . . Sentry 26 | . . . . 6 12 . . . . . . . . 3 . 1 . . . . . . . . . . . . . . 1 . . . . . 2 . 1 . Hunter 7 | . . . . . . . . . . . . . . . . . . . . . . . . . . . . . . . . . . . . 2 . 1 4 . Programmer 17 | . . . . . . . . . . . . . 1 . . . . . . . . . . . 2 . 5 . . . . . 3 . . . 3 2 1 . Behemoth 3 | . . . . . . . . . . . . . . 1 . . . . . . . . . . . . . . . . . . . . 1 . . 1 . . Cetus Guard 2 | . . . . . . . . . . . . . . . 2 . . . . . . . . . . . . . . . . . . . . . . . . . M Guard 1 | . . . . . . . . . . . . . . . . . . . . . . . . . . . . . . . . . . . . . . . 1 . Enhanced Grunt 8 | . . . . . . . . . . . . . . . . . . . . . . . . . . . . . . . . . . . . . . . . 8 Enhanced Hunter 5 | . . . . . . . . . . . . . . . . . . . . . . . . . . . . . . . . . . . . . . . . 5 Subdweller 7 | . . . 7 . . . . . . . . . . . . . . . . . . . . . . . . . . . . . . . . . . . . . Samaritan 1 | . . . . . . . . . . 1 . . . . . . . . . . . . . . . . . . . . . . . . . . . . . . Tinkerer 1 | . . . . . . . . . . . . . . . . . . . . . . . . . . . . . . . 1 . . . . . . . . . Thug 1 | . . . . . 1 . . . . . . . . . . . . . . . . . . . . . . . . . . . . . . . . . . . Commander 1 | . . . . . . . . . . 1 . . . . . . . . . . . . . . . . . . . . . . . . . . . . . . Best Kill Streak 11 | 1 7 . 5 2 11 1 . 1 4 . . . 4 5 3 7 2 4 . 3 1 . 2 3 2 . 4 . 3 . 2 3 3 . 1 2 4 5 2 3 Combat Bots Only 9 | . 4 . 5 1 9 . . . 4 . . . 4 2 2 1 . . . . . . 2 3 2 . 4 . 3 . 2 . 3 . 1 2 4 3 2 3 Max Kills in Single Turn 4 | 1 1 . 3 2 4 1 . 1 4 1 . . 4 2 1 1 1 1 . 1 1 . 1 1 1 . 4 . 1 . 1 1 1 . 1 1 1 1 1 1 Gunslinging . | . . . . . . . . . . . . . . . . . . . . . . . . . . . . . . . . . . . . . . . . . Exploded 4 | . . . 3 . 3 . . . 4 . . . 4 1 . . . . . . . . 1 1 . . 4 . 1 . . . . . . . . . . . Melee 1 | . . . . . 1 . . . . . . . 1 1 1 1 . . . . . . . . 1 . 1 . . . . . 1 . 1 1 1 1 1 1 Uniques/NPCs Destroyed 7 | . . . . . . . . . . . . . . . 1 . . . . . . . . . . . . . . . . . . . . . . . 2 4 A7 (-6/Cetus) MAIN.C Shell (-1/Command) MAIN.C (-1/Command) A8 (-1/Access_0) A6 (-1/Access_0) A5 (-1/Access_0) Architect (-1/Access_0) Combat | -11 -10 -10 -10 -8 -8 -7 -7 -7 -7 -7 -7 -6 -6 -6 -6 -6 -6 -5 -5 -5 -5 -5 -5 -4 -4 -4 -4 -4 -4 -4 -3 -3 -3 -3 -2 -2 -2 -1 -1 -1 -------- Run | Jun Mat Min Sub Mat Sto Fac Was Fac Low Low Dat Pro Fac Ext Cet Arc Hub Fac Was Fac Upp Upp War Pro Fac Was Fac Upp Upp Zhi Pro Res Arm Lab Res Qua Sec Acc Com Ac0 Damage Taken 12601 | . 313 . 681 202 1238 81 21 131 . . . 221 355 350 50 . 290 39 53 . . 18 207 34 110 . 697 . 50 . 41 104 473 . 21 812 1062 699 1954 2294 Core 1621 | . 61 . 123 27 120 33 . 24 . . . . 83 99 15 . 31 . . . . . 17 . . . 85 . 9 . 6 . . . . 68 286 38 147 349 Absorbed by Shields 4434 | . . . . 32 304 . . . . . . . 12 99 27 . . . . . . 7 8 32 83 . 495 . 47 . 40 . . . . 232 69 113 827 2007 Redirected to Shielding 447 | . 1 . 19 3 . . . . . . . 56 18 14 7 . . . . . . . . . . . 37 . . . . . . . . . . . 85 207 Regen/Repaired (Parts) 4748 | . . . . . . . . 48 . . . . 328 . . . . 446 . . . . . . 107 . 280 . . . . 31 . . . 515 375 447 1317 854 Core Remaining (%) 75 | 100 . . 26 . 73 . . . . . . 91 . . . . 73 . . . . . . 98 . . . . . . 91 . . 100 . . 67 . . 39 Volleys Fired 601 | 9 55 . 39 32 76 . . . 1 . . . 6 10 . . 4 10 1 7 . 4 11 7 12 6 39 35 15 . 19 19 69 3 30 2 17 42 13 8 Largest 2 | 2 2 . 2 2 2 . . . 1 . . . 1 1 . . 1 1 1 1 . 1 1 1 1 1 1 1 1 . 1 1 1 1 1 1 1 1 1 1 Hottest 105 | 60 100 . 100 90 78 . . . 36 . . . 85 43 . . 90 90 35 35 . 35 80 80 35 35 105 35 80 . 105 105 105 35 105 35 100 100 100 88 Shots Fired 791 | 18 102 . 55 63 143 . . . 1 . . . 6 10 . . 4 10 2 11 4 4 11 7 12 8 43 38 15 . 22 19 69 3 30 2 17 42 12 8 Gun 236 | 18 94 . 31 48 45 . . . . . . . . . . . . . . . . . . . . . . . . . . . . . . . . . . . Cannon 478 | . . . . 14 93 . . . . . . . 4 . . . 2 10 2 11 4 4 . . 12 8 41 38 11 . 22 19 69 3 30 2 17 42 12 8 Launcher 60 | . . . 15 1 5 . . . 1 . . . 2 10 . . 2 . . . . . 11 7 . . 2 . 4 . . . . . . . . . . . Special 17 | . 8 . 9 . . . . . . . . . . . . . . . . . . . . . . . . . . . . . . . . . . . . . Kinetic 305 | 17 94 . 18 38 138 . . . . . . . . . . . . . . . . . . . . . . . . . . . . . . . . . . . Thermal 419 | . 8 . 24 24 . . . . . . . . 4 . . . 2 10 2 11 4 4 . . 12 8 41 38 11 . 22 19 69 3 30 2 17 42 12 . Explosive 58 | . . . 13 1 5 . . . 1 . . . 2 10 . . 2 . . . . . 11 7 . . 2 . 4 . . . . . . . . . . . Electromagnetic 9 | 1 . . . . . . . . . . . . . . . . . . . . . . . . . . . . . . . . . . . . . . . 8 Robot Hit Streak 15 | 4 9 . 11 10 15 . . . . . . . . 2 . . . . . 2 3 . . . 5 . 6 7 1 . 4 . 6 . . . 1 3 . 3 Robot Miss Streak 3 | 1 3 . 3 2 3 . . . . . . . . 1 . . . . 2 . . . . . 1 . 1 . 1 . 2 . 1 . . . . . . 2 Penetration Max . | . . . . . . . . . . . . . . . . . . . . . . . . . . . . . . . . . . . . . . . . . Secondary Targets 1 | . . . 1 . . . . . . . . . . . . . . . . . . . . . . . . . . . . . . . . . . . . . Max Gunslinging Chain 1 | . . . 1 . . . . . . . . . . . . . . . . . . . . . . . . . . . . . . . . . . . . . Shots Hit Robots 910 | 11 58 . 31 42 116 1 . 10 2 4 1 . 17 28 12 12 7 26 . 15 3 . . . 13 . 43 2 1 7 8 18 13 . 1 21 28 39 128 192 Core Hits 490 | 5 28 1 22 19 63 1 . 1 5 1 . . 14 17 4 7 9 9 . 5 2 . 27 13 7 . 25 . 5 4 3 9 6 . 2 6 21 14 54 81 Critical Kills 9 | . . . 1 . 1 . . . . 1 . . . . . . . . . . . . . . . . 1 . . . . . . . 1 . . 2 2 . Critical Parts Destroyed 8 | 1 1 . 1 . 2 . . 1 1 1 . . . . . . . . . . . . . . . . . . . . . . . . . . . . . . Critical Strikes 61 | 1 1 . 2 2 4 . . 1 1 2 . . 3 1 2 . 1 2 . 1 . . . . . . 4 . . . . 2 1 . 1 4 4 3 6 12 Meltdown 6 | . . . . . . . . . . . . . . . . . . . . . . . . . . . 1 . . . . . . . 1 . . 2 2 . Destroy 4 | 1 1 . 2 . . . . . . . . . . . . . . . . . . . . . . . . . . . . . . . . . . . . . Blast 3 | . . . . 2 1 . . . . . . . . . . . . . . . . . . . . . . . . . . . . . . . . . . . Smash 7 | . . . . . 3 . . 1 1 2 . . . . . . . . . . . . . . . . . . . . . . . . . . . . . . Sever 38 | . . . . . . . . . . . . . . 1 2 . 1 2 . 1 . . . . . . 3 . . . . 2 1 . . 4 4 1 4 12 Impale 3 | . . . . . . . . . . . . . 3 . . . . . . . . . . . . . . . . . . . . . . . . . . . Melee Attacks 1234 | . . . . . 20 11 . 71 2 8 1 3 73 35 14 12 20 66 . 25 2 3 24 1 19 . 64 8 4 7 3 26 29 13 8 53 62 78 236 233 Impact 136 | . . . . . 19 8 . 64 2 8 . 3 32 . . . . . . . . . . . . . . . . . . . . . . . . . . . Slashing 1046 | . . . . . . . . . . . . . 1 35 14 12 20 66 . 25 2 3 24 1 19 . 64 8 4 7 3 26 29 13 8 53 62 78 236 233 Piercing 51 | . . . . . 1 3 . 7 . . . . 40 . . . . . . . . . . . . . . . . . . . . . . . . . . . Sneak Attacks 105 | . . . . . 6 . . 5 2 4 1 . 8 6 3 8 2 13 . 5 1 . . . 4 . 9 1 . . 1 10 1 . . 1 4 7 2 1 Combat Hostiles 5 | . . . . . . . . . . . . . . 1 . 1 1 . . . . . . . . . . . . . . . 1 . . . . . . 1 Follow-up Attacks 197 | . . . . . . . . . . . . . . . . . . . . . . . . . . . . . . . . . . . . 4 10 16 55 112 Damage Inflicted 63634 | 109 684 5 1299 1029 4112 34 . 968 395 427 . . 1395 2767 755 1393 716 2297 31 970 227 . 1864 1005 822 . 2991 142 319 738 414 1482 833 . 341 1342 2061 2845 13606 13216 Guns 2488 | 109 664 . 405 708 602 . . . . . . . . . . . . . . . . . . . . . . . . . . . . . . . . . . . Cannons 4144 | . . . . 196 1411 . . . . . . . . . . . . . 31 34 63 . . . 153 . 529 31 32 . 289 . 124 . 271 . 179 198 444 159 Explosions 7563 | . . . 894 50 1351 . . . 177 . . . 240 968 . . 153 . . . . . 1864 1005 . . 574 . 287 . . . . . . . . . . . Melee 49302 | . . . . . 711 34 . 968 218 427 . . 1155 1799 755 1393 563 2297 . 936 164 . . . 669 . 1888 111 . 738 125 1482 709 . 70 1342 1882 2647 13162 13057 Ramming 137 | . 20 5 . 75 37 . . . . . . . . . . . . . . . . . . . . . . . . . . . . . . . . . . . Kinetic 3755 | 109 664 . 416 553 2013 . . . . . . . . . . . . . . . . . . . . . . . . . . . . . . . . . . . Thermal 2930 | . . . 201 351 . . . . . . . . . . . . . . 31 34 63 . . . 153 . 529 31 32 . 289 . 124 . 271 . 179 198 444 . Explosive 7198 | . . . 682 50 1351 . . . 177 . . . 240 968 . . . . . . . . 1864 1005 . . 574 . 287 . . . . . . . . . . . Electromagnetic 312 | . . . . . . . . . . . . . . . . . 153 . . . . . . . . . . . . . . . . . . . . . . 159 Impact 2530 | . . . . . 649 . . 882 218 427 . . 354 . . . . . . . . . . . . . . . . . . . . . . . . . . . Slashing 45789 | . . . . . . . . . . . . . . 1799 755 1393 563 2297 . 936 164 . . . 669 . 1888 111 . 738 125 1482 709 . 70 1342 1882 2647 13162 13057 Piercing 983 | . . . . . 62 34 . 86 . . . . 801 . . . . . . . . . . . . . . . . . . . . . . . . . . . Highest Corruption 18 | . 2 2 2 3 18 . . . . . . . 1 1 1 1 2 2 18 18 18 18 18 . 1 1 6 6 6 6 6 . 3 3 . . 2 1 7 1 Average Corruption 4 | . 2 2 2 2 4 . . . . . . . 1 1 1 1 2 1 10 18 18 18 18 . 1 1 4 6 6 6 6 . 2 3 . . 1 1 3 1 Corruption Purged 10 | . . . . . . . . . . . . . . . . 1 . 2 . . . . . . . . . . . . . . . . . . . . 7 . Corruption Blocked 37 | . . . . . . . . . . . . . . . . . . . . . . . . . . . . . . . . . . . 37 . . . . . Effects 387 | . 7 . 31 12 45 . . . . . . . 4 8 2 . . . 4 38 22 30 1 . . 3 59 31 17 4 21 . 10 3 . . 6 4 16 9 Message Errors 100 | . 3 . 9 3 8 . . . . . . . . 2 . . . . 2 10 3 9 . . . . 17 10 3 2 4 . 4 2 . . 2 . 5 2 Matter Fused 85 | . . . 7 4 11 . . . . . . . 2 3 1 . . . . 7 3 6 . . . . 15 4 4 1 4 . 2 . . . . 3 8 . Heat Flow Errors 42 | . . . 4 2 3 . . . . . . . 2 1 . . . . . 3 2 6 . . . . 6 5 3 1 1 . . . . . 2 . . 1 Energy Discharges 54 | . 1 . 6 1 8 . . . . . . . . 1 1 . . . . 7 5 5 . . . . 6 4 3 . 4 . . 1 . . 1 . . . Parts Rejected 6 | . . . . . 3 . . . . . . . . . . . . . . . . . . . . . . . . . . . 1 . . . . . 2 . Parts Fused 5 | . . . . . 1 . . . . . . . . . . . . . . 1 . 1 . . . . 1 . 1 . . . . . . . . . . . Data Loss (minor) 43 | . 1 . 2 1 4 . . . . . . . . 1 . . . . . 4 4 1 . . . . 7 5 1 . 5 . 2 . . . . 1 1 3 Data Loss (major) 16 | . 1 . 2 1 2 . . . . . . . . . . . . . . 1 . 1 1 . . 1 3 . . . . . . . . . 1 . . 2 Misfires 25 | . 1 . 1 . 1 . . . . . . . . . . . . . 1 4 4 . . . . 2 4 3 1 . 3 . . . . . . . . . Alerts 6 | . . . . . 2 . . . . . . . . . . . . . . 1 1 . . . . . . . . . . . 1 . . . . . . 1 Misdirections 2 | . . . . . . . . . . . . . . . . . . . 1 . . 1 . . . . . . . . . . . . . . . . . . Weapon Failures 3 | . . . . . 2 . . . . . . . . . . . . . . . . . . . . . . . 1 . . . . . . . . . . . Overload Shots 15 | . . . . . . . . . . . . . . . . . . . . . . . . . . . 4 . . . 5 1 2 . 3 . . . . . Effects 1 | . . . . . . . . . . . . . . . . . . . . . . . . . . . 1 . . . . . . . . . . . . . Heat Surge 1 | . . . . . . . . . . . . . . . . . . . . . . . . . . . 1 . . . . . . . . . . . . . Overflow Damage 5948 | . . . 72 . 258 . . 392 178 183 . . 161 468 66 381 150 588 . 204 76 . . 19 126 . 429 71 . 147 . 134 44 . . 213 . 443 769 376 Projectiles 26 | . . . . . . . . . . . . . . . . . . . . 12 . . . . 7 . . . . . . . . . . . . . . 7 Explosions 160 | . . . 72 . 35 . . . . . . . . 19 . . . . . . . . . 19 . . 15 . . . . . . . . . . . . . Melee 5762 | . . . . . 223 . . 392 178 183 . . 161 449 66 381 150 588 . 192 76 . . . 119 . 414 71 . 147 . 134 44 . . 213 . 443 769 369 Knockbacks 13 | . . . . . 10 . . . 1 2 . . . . . . . . . . . . . . . . . . . . . . . . . . . . . . Impact 6 | . . . . . 3 . . . 1 2 . . . . . . . . . . . . . . . . . . . . . . . . . . . . . . Kinetic 4 | . . . . . 4 . . . . . . . . . . . . . . . . . . . . . . . . . . . . . . . . . . . Secondary 3 | . . . . . 3 . . . . . . . . . . . . . . . . . . . . . . . . . . . . . . . . . . . Self-Inflicted Damage 468 | . . . 97 . . . . . . . . . 46 . . . 90 . . . . . . . . . 235 . . . . . . . . . . . . . Shots 11 | . . . 6 . . . . . . . . . 1 . . . 1 . . . . . . . . . 3 . . . . . . . . . . . . . Rammed 19 | . 7 2 . 6 4 . . . . . . . . . . . . . . . . . . . . . . . . . . . . . . . . . . . Targets Rammed 21 | . 8 2 . 7 4 . . . . . . . . . . . . . . . . . . . . . . . . . . . . . . . . . . . Kicked . | . . . . . . . . . . . . . . . . . . . . . . . . . . . . . . . . . . . . . . . . . Crushed 2 | . 1 . . 1 . . . . . . . . . . . . . . . . . . . . . . . . . . . . . . . . . . . . Highest Temperature 389 | 20 60 . 163 276 261 20 55 367 30 90 25 92 170 225 2 4 92 153 18 283 200 354 389 136 2 16 245 240 211 250 224 4 8 . . . 185 . 2 162 Average Temperature 37 | 15 20 . 75 47 72 9 29 19 12 34 13 42 15 15 2 2 7 40 4 46 21 48 46 71 2 5 71 75 67 121 91 3 5 . . . 88 . 2 105 Received Heat Transfer 1401 | . 132 . 60 87 593 12 9 45 . . . 36 27 105 . . 18 18 . . . . . 10 6 . 16 . 22 . 4 . 9 . . 12 36 62 82 . Effects 5 | . . . . . . . . 1 . . . . . . . . . . . . . 3 1 . . . . . . . . . . . . . . . . . Shutdowns 1 | . . . . . . . . . . . . . . . . . . . . . . . 1 . . . . . . . . . . . . . . . . . Energy Bleed 1 | . . . . . . . . 1 . . . . . . . . . . . . . . . . . . . . . . . . . . . . . . . . Interference 3 | . . . . . . . . . . . . . . . . . . . . . . 3 . . . . . . . . . . . . . . . . . . Siege Activations . | . . . . . . . . . . . . . . . . . . . . . . . . . . . . . . . . . . . . . . . . . Robots Corrupted 1 | . . . . . . . . . . . . . . . . . . . . . . . . . . . . . . . . . . . . . . . . 1 Combat Hostiles 1 | . . . . . . . . . . . . . . . . . . . . . . . . . . . . . . . . . . . . . . . . 1 Parts Fried 20 | . . . . . 6 . . 1 3 1 . . 3 1 . . . . . . . . . . . . . . . . . . . . . . . . . 5 Impact Corruptions 30 | . . . . . 8 . . 4 5 10 . . 3 . . . . . . . . . . . . . . . . . . . . . . . . . . . Robots Melted 6 | . . . . . . . . . . . . . . . . . . . . . . . . . . . 1 . . . . . . . 1 . . 2 2 . Combat Hostiles 5 | . . . . . . . . . . . . . . . . . . . . . . . . . . . 1 . . . . . . . 1 . . 1 2 . Parts Melted 11 | . . . . . . . . . . . . . . . . . . . . . . . . . 1 . 1 . . . 1 . . . . . . 6 2 . Heat Transferred 3308 | . . . 250 425 . . . . . . . . . . . . . . 50 50 100 . . . 250 . 740 50 50 . 390 . 160 . 222 . 148 110 313 . Parts Sabotaged 2 | . . . . . . . . . . . . . . . . . . . . . . . . . . . . . . . . . 2 . . . . . . . Parts Stolen . | . . . . . . . . . . . . . . . . . . . . . . . . . . . . . . . . . . . . . . . . . Parts Stripped . | . . . . . . . . . . . . . . . . . . . . . . . . . . . . . . . . . . . . . . . . . Power Chain Reactions . | . . . . . . . . . . . . . . . . . . . . . . . . . . . . . . . . . . . . . . . . . Missiles Intercepted 7 | . . . . . . . . . . . . . . . . . . . . . . . . . . . . . . . . . . . . . . . 7 . Alert | -11 -10 -10 -10 -8 -8 -7 -7 -7 -7 -7 -7 -6 -6 -6 -6 -6 -6 -5 -5 -5 -5 -5 -5 -4 -4 -4 -4 -4 -4 -4 -3 -3 -3 -3 -2 -2 -2 -1 -1 -1 ------- Run | Jun Mat Min Sub Mat Sto Fac Was Fac Low Low Dat Pro Fac Ext Cet Arc Hub Fac Was Fac Upp Upp War Pro Fac Was Fac Upp Upp Zhi Pro Res Arm Lab Res Qua Sec Acc Com Ac0 Peak Influence 741 | 15 216 39 . 164 615 376 176 350 . . . . 741 387 572 458 474 321 85 330 . . . . 175 31 638 . . . . 207 446 . 141 170 544 238 308 . Initial 460 | . 9 39 . 33 25 253 131 81 . . . . 460 197 216 220 160 231 68 52 . . . . 58 . 21 . . . . 74 11 . . . 53 32 100 . Average 173 | 7 81 39 . 70 274 316 134 224 . . . . 457 127 394 411 206 123 77 191 . . . . 89 18 243 . . . . 76 146 . 46 73 217 123 144 . Maximum Alert Level 3 | . 1 . . . 2 1 . 1 . . . . 3 1 2 2 2 1 . 1 . . . . . . 2 . . . . 1 2 . . . 2 1 1 . Low Security (%) 68 | 100 95 100 . 100 26 . 100 34 . . . . . 81 1 . 39 78 100 60 . . . . 100 100 41 . . . . 97 76 . 100 100 55 91 90 . Level 1 23 | . 4 . . . 56 100 . 65 . . . . 36 18 61 17 56 21 . 39 . . . . . . 48 . . . . 2 17 . . . 26 8 9 . Level 2 7 | . . . . . 16 . . . . . . . 49 . 37 82 4 . . . . . . . . . 10 . . . . . 6 . . . 18 . . . Level 3 . | . . . . . . . . . . . . . 13 . . . . . . . . . . . . . . . . . . . . . . . . . . . Level 4 . | . . . . . . . . . . . . . . . . . . . . . . . . . . . . . . . . . . . . . . . . . Level 5 . | . . . . . . . . . . . . . . . . . . . . . . . . . . . . . . . . . . . . . . . . . High Security . | . . . . . . . . . . . . . . . . . . . . . . . . . . . . . . . . . . . . . . . . . Max Security . | . . . . . . . . . . . . . . . . . . . . . . . . . . . . . . . . . . . . . . . . . Squads Dispatched 86 | . 4 . . 2 6 . . 2 . . . . 5 1 . . 7 6 . 4 . . . . 3 . 10 . . . . 8 8 . . 3 5 4 8 . Investigation 30 | . 1 . . . 1 . . . . . . . 2 . . . 5 3 . 2 . . . . 1 . 4 . . . . 4 4 . . . . 2 1 . Extermination 22 | . . . . . . . . 1 . . . . 1 . . . 1 1 . 1 . . . . 1 . 3 . . . . . 4 . . 2 2 1 4 . Reinforcement 24 | . 3 . . 1 . . . 1 . . . . 2 1 . . 1 2 . 1 . . . . 1 . 1 . . . . 4 . . . 1 2 1 2 . Assault 5 | . . . . . 2 . . . . . . . . . . . . . . . . . . . . . 1 . . . . . . . . . 1 . 1 . Garrison 5 | . . . . 1 3 . . . . . . . . . . . . . . . . . . . . . 1 . . . . . . . . . . . . . Intercept . | . . . . . . . . . . . . . . . . . . . . . . . . . . . . . . . . . . . . . . . . . Searches Triggered 2 | . . . . . . . . . . . . . 2 . . . . . . . . . . . . . . . . . . . . . . . . . . . Data Miner Redirects 10 | . . . . . . . . . . . . . 1 . . . 2 1 . . . . . . 1 . 1 . . . . . 3 . . . . 1 . . Construction Impeded . | . . . . . . . . . . . . . . . . . . . . . . . . . . . . . . . . . . . . . . . . . Haulers Reinforced 8 | . . . . . . . . 1 . . . . 1 . . . . 2 . 1 . . . . . . 1 . . . . 1 . . . . . 1 . . Active Scanning Responses . | . . . . . . . . . . . . . . . . . . . . . . . . . . . . . . . . . . . . . . . . . Cargo Convoy Interrupts 2 | . . . . . . . . . . . . . 1 . . . . . . 1 . . . . . . . . . . . . . . . . . . . . Stealth | -11 -10 -10 -10 -8 -8 -7 -7 -7 -7 -7 -7 -6 -6 -6 -6 -6 -6 -5 -5 -5 -5 -5 -5 -4 -4 -4 -4 -4 -4 -4 -3 -3 -3 -3 -2 -2 -2 -1 -1 -1 --------- Run | Jun Mat Min Sub Mat Sto Fac Was Fac Low Low Dat Pro Fac Ext Cet Arc Hub Fac Was Fac Upp Upp War Pro Fac Was Fac Upp Upp Zhi Pro Res Arm Lab Res Qua Sec Acc Com Ac0 Distress Signals 68 | . 1 . . 5 1 . . 2 . . . . 1 2 2 . 1 . . . . . 3 . . . . . . . . 10 2 . 6 . 2 . 30 . Communications Jammed 69 | . . . . . . . . . . . . . . . . . . 5 . . . . . . . . 4 . . . . 8 8 . 4 6 23 1 10 . Distress Signals 64 | . . . . . . . . . . . . . . . . . . 5 . . . . . . . . 4 . . . . 8 3 . 4 6 23 1 10 . Times Spotted 605 | . 24 . 16 17 40 4 8 23 2 7 . 15 21 28 9 8 19 15 5 4 8 8 34 14 9 6 51 13 7 . 13 9 36 . 11 10 23 15 33 40 Peak Tracking Total 14 | . 5 . 5 3 9 2 4 5 4 3 . 9 6 3 5 1 6 5 5 1 5 3 10 5 2 6 11 5 7 . 5 6 14 . 3 4 5 4 5 4 Tactical Retreats 62 | . . . 1 1 2 . . 11 . 1 . 4 6 3 . . 1 3 . . 1 . 1 . . 1 8 2 . . . . 5 . 1 1 4 3 2 . Traps | -11 -10 -10 -10 -8 -8 -7 -7 -7 -7 -7 -7 -6 -6 -6 -6 -6 -6 -5 -5 -5 -5 -5 -5 -4 -4 -4 -4 -4 -4 -4 -3 -3 -3 -3 -2 -2 -2 -1 -1 -1 ------- Run | Jun Mat Min Sub Mat Sto Fac Was Fac Low Low Dat Pro Fac Ext Cet Arc Hub Fac Was Fac Upp Upp War Pro Fac Was Fac Upp Upp Zhi Pro Res Arm Lab Res Qua Sec Acc Com Ac0 Traps Triggered 36 | . 2 . 2 2 2 2 . 1 . . . . 3 3 . . 1 1 . . . . 1 . 1 . 1 . . . . 4 . . . 1 . 2 7 . Indirectly 1 | . . . . . . . . . . . . . . . . . 1 . . . . . . . . . . . . . . . . . . . . . . . Trap Hack Attempts 39 | . . . . . . . . 39 . . . . . . . . . . . . . . . . . . . . . . . . . . . . . . . . Triggered . | . . . . . . . . . . . . . . . . . . . . . . . . . . . . . . . . . . . . . . . . . Disarmed 1 | . . . . . . . . 1 . . . . . . . . . . . . . . . . . . . . . . . . . . . . . . . . Reprogrammed 37 | . . . . . . . . 12 . . . . . . . . . 17 . . . . . . . . . . . . . . 2 . . . 6 . . . Reused 24 | . . . . . . . . 1 . . . . 3 . . . . 8 . 3 . . . . . . 1 . . . . . 5 . . . 3 . . . Traps Extracted 13 | . . . . . . . . 5 . . . . . . . . . 3 . 1 3 . . . . . . . . . . . 1 . . . . . . . Installed 15 | . . . . . . . . . . . . . 4 . . . . 2 . 4 . . . . . . 1 . . . . . 4 . . . . . . . Triggered 36 | . . . . . . . . 1 1 . . . 3 . . . . 8 . 6 . . 5 . . . 1 . . . . . 8 . . . 3 . . . Most Traps Carried 6 | . . . . . . . . 5 6 6 6 6 6 2 2 2 2 4 3 3 6 6 6 6 6 6 6 5 5 5 5 5 5 . . . . . . . Machines | -11 -10 -10 -10 -8 -8 -7 -7 -7 -7 -7 -7 -6 -6 -6 -6 -6 -6 -5 -5 -5 -5 -5 -5 -4 -4 -4 -4 -4 -4 -4 -3 -3 -3 -3 -2 -2 -2 -1 -1 -1 ---------- Run | Jun Mat Min Sub Mat Sto Fac Was Fac Low Low Dat Pro Fac Ext Cet Arc Hub Fac Was Fac Upp Upp War Pro Fac Was Fac Upp Upp Zhi Pro Res Arm Lab Res Qua Sec Acc Com Ac0 Machines Disabled 81 | . . . 1 . 2 1 . 5 . . . . 1 7 . 3 18 . . 2 . 2 . . 1 . 5 . . . 1 . 4 2 5 5 7 . 5 4 Max in Single Turn 16 | . . . 1 . 1 1 . 1 . . . . 1 2 . . 16 . . 1 . 1 . . 1 . 2 . . . 1 . 1 1 1 1 1 . 1 1 Garrison Access 18 | . . . . . . . . 2 . . . . 3 . . . 1 2 . . . . . . . . 3 . . . . 2 . . 2 . 1 2 . . Network Hub 2 | . . . . . . . . . . . . . . . . . 2 . . . . . . . . . . . . . . . . . . . . . . . Energy Cycler 4 | . . . . . . . . . . . . . . 4 . . . . . . . . . . . . . . . . . . . . . . . . . . Machines Repaired 1 | . . . . . . . . . . . . . . . . . 1 . . . . . . . . . . . . . . . . . . . . . . . Machines Sabotaged . | . . . . . . . . . . . . . . . . . . . . . . . . . . . . . . . . . . . . . . . . . Overloaded Fab Kills . | . . . . . . . . . . . . . . . . . . . . . . . . . . . . . . . . . . . . . . . . . Hacking | -11 -10 -10 -10 -8 -8 -7 -7 -7 -7 -7 -7 -6 -6 -6 -6 -6 -6 -5 -5 -5 -5 -5 -5 -4 -4 -4 -4 -4 -4 -4 -3 -3 -3 -3 -2 -2 -2 -1 -1 -1 --------- Run | Jun Mat Min Sub Mat Sto Fac Was Fac Low Low Dat Pro Fac Ext Cet Arc Hub Fac Was Fac Upp Upp War Pro Fac Was Fac Upp Upp Zhi Pro Res Arm Lab Res Qua Sec Acc Com Ac0 Machines Accessed 239 | . 5 . 2 5 14 6 . 28 . 2 4 1 18 5 . . 6 24 . 8 . . 1 . 7 . 26 2 1 4 1 14 12 1 1 7 12 14 8 . Terminals 140 | . 4 . . 5 12 6 . 16 . . . 1 9 5 . . 5 12 . 3 . . . . 4 . 12 1 1 . 1 4 7 . 1 5 10 8 8 . Fabricators 28 | . . . . . . . . 4 . . . . 2 . . . . 4 . 3 . . . . 1 . 5 . . . . 3 4 . . . . 2 . . Repair Stations 13 | . . . . . . . . 1 . . . . 3 . . . . 2 . . . . . . 2 . 3 . . . . 1 . . . 1 . . . . Recycling Units 19 | . 1 . . . 1 . . 4 . . . . 1 . . . . 3 . 2 . . . . . . 3 . . . . 2 1 . . . . 1 . . Scanalyzers 6 | . . . . . . . . . . . . . . . . . . 1 . . . . . . . . . . . . . 2 . . . 1 1 1 . . Garrison Access 18 | . . . . . 1 . . 3 . . . . 3 . . . 1 2 . . . . . . . . 3 . . . . 2 . . . . 1 2 . . Total Hacks 940 | . 13 . 11 10 30 12 . 60 . 7 29 1 52 17 . . 31 136 . 38 . . 1 . 38 . 112 7 1 17 6 63 64 11 8 29 54 42 40 . Successful 585 | . 6 . 11 2 11 6 . 27 . 7 29 1 29 7 . . 15 86 . 26 . . 1 . 29 . 66 7 1 17 6 35 37 11 6 18 34 30 24 . Failed 353 | . 7 . . 8 19 6 . 33 . . . . 23 10 . . 16 50 . 12 . . . . 8 . 46 . . . . 28 27 . 1 11 20 12 16 . Catastrophic 46 | . 2 . . 2 3 1 . 4 . . . . 5 2 . . . 7 . 1 . . . . 1 . 5 . . . . 3 4 . . 1 2 1 2 . Database Lockouts 2 | . . . . . . . . . . . . . . . . . . . . . . . . . 1 . . . . . . . . . 1 . . . . . Manual 375 | . 2 . . 4 3 4 . 22 . . . . 11 8 1 . 13 51 . 20 . . 1 . 19 . 57 . . . . 35 38 . 6 11 24 22 23 . Terminals 571 | . 10 . . 10 26 12 . 37 . . . 1 20 17 . . 28 74 . 14 . . . . 24 . 70 6 1 . 6 32 42 . 8 18 48 27 40 . Fabricators 113 | . . . . . . . . 6 . . . . 5 . . . . 18 . 16 . . . . 5 . 22 . . . . 15 19 . . . . 7 . . Repair Stations 73 | . . . . . . . . 2 . . . . 18 . . . . 23 . . . . . . 9 . 11 . . . . 2 . . . 8 . . . . Recycling Units 62 | . 3 . . . 3 . . 10 . . . . 2 . . . . 13 . 8 . . . . . . 6 . . . . 9 3 . . . . 5 . . Scanalyzers 17 | . . . . . . . . . . . . . . . . . . 5 . . . . . . . . . . . . . 3 . . . 3 5 1 . . Garrison Access 27 | . . . . . 1 . . 5 . . . . 7 . . . 3 3 . . . . . . . . 3 . . . . 2 . . . . 1 2 . . Terminal Hacks 311 | . 5 . 11 2 9 4 . 14 . 7 29 1 5 6 . . 9 31 . 7 . . 1 . 13 . 24 7 1 17 6 12 18 11 6 5 22 14 14 . Record 58 | . . . 10 . . . . . . 6 11 1 . . . . . . . . . . . . . . . 6 1 5 6 . . 11 1 . . . . . Part Schematic 29 | . . . . . . . . 1 . . 10 . . . . . . 1 . . . . . . 2 . 1 . . 4 . 5 1 . . . 4 . . . Robot Schematic 6 | . . . . . . . . . . . 5 . . . . . . 1 . . . . . . . . . . . . . . . . . . . . . . Robot Analysis 9 | . 1 . . . . . . 1 . . . . . . . . . . . . . . . . . . . . . 4 . . 2 . . . 1 . . . Prototype ID Bank 11 | . . . . . . . . . . . 3 . . 1 . . . 1 . . . . . . 1 . . . . 4 . . . . 1 . . . . . Open Door 10 | . . . . . 3 . . . . 1 . . 1 . . . . . . . . . 1 . . . . 1 . . . . 1 . . . 2 . . . Open DSF 1 | . . . . . . 1 . . . . . . . . . . . . . . . . . . . . . . . . . . . . . . . . . . Level Access Points 2 | . . . . . . . . . . . . . . . . . . . . . . . . . . . . . . . . . . . . . 1 . 1 . Branch Access Points 6 | . . . . . . 1 . 1 . . . . . . . . . . . . . . . . 1 . 1 . . . . . . . 1 . . 1 . . Machine Index 6 | . . . . . . . . . . . . . . . . . . . . . . . . . . . . . . . . 1 1 . . 1 1 1 1 . Terminal Index 8 | . . . . . . . . 1 . . . . . . . . . 1 . 1 . . . . 1 . 1 . . . . . 1 . 1 . . . 1 . Fabricator Index 4 | . . . . . . . . . . . . . . . . . . 1 . . . . . . 1 . 1 . . . . . . . . . . 1 . . Repair Station Index 2 | . . . . . . . . . . . . . . . . . . . . . . . . . . . . . . . . . . . 1 . . 1 . . Recycling Unit Index 2 | . . . . . . . . . . . . . . . . . . . . . . . . . . . 1 . . . . . . . . . . 1 . . Scanalyzer Index 3 | . . . . . . . . . . . . . . . . . . 1 . . . . . . 1 . . . . . . . . . . . . 1 . . Alert Level 3 | . . . . . . . . 1 . . . . . . . . . . . . . . . . . . 1 . . . . . . . . . . . 1 . Unreport Threat 32 | . . . . . . . . 1 . . . . 1 3 . . 5 3 . . . . . . 2 . 5 . . . . . 5 . . . 3 3 1 . Locate Traps 39 | . 1 . . 1 2 1 . 3 . . . . 2 . . . 1 8 . 3 . . . . . . 5 . . . . 2 2 . . 1 4 1 2 . Reprogram Traps 6 | . . . . . . . . 1 . . . . . . . . . 3 . . . . . . . . . . . . . . 1 . . . 1 . . . Surveillance Status 1 | . . . . . . . . . . . . . . . . . . . . . . . . . . . . . . . . . . . . . . . 1 . Patrol Status 1 | . . . . . . . . . . . . . . . . . . . . . . . . . . . . . . . . . . . . . . . 1 . Recall Investigation 4 | . . . . . . . . . . . . . . . . . . . . . . . . . 1 . 1 . . . . . 1 . . . . 1 . . Recall Extermination 10 | . . . . . . . . . . . . . . . . . . 1 . . . . . . 1 . 2 . . . . . 2 . . 2 1 1 . . Recall Reinforcements 5 | . . . . . . . . . . . . . . . . . . 3 . . . . . . 1 . . . . . . 1 . . . . . . . . Recall Assault 2 | . . . . . . . . . . . . . . . . . . . . . . . . . . . 1 . . . . . . . . . 1 . . . Hauler Manifests 11 | . 1 . . 1 1 1 . 1 . . . . . 1 . . . 1 . 1 . . . . . . . . . . . 1 . . 1 . . 1 . . Registered Components 2 | . . . . . . . . . . . . . . . . . . . . 1 . . . . . . . . . . . . . . . . . . 1 . Zone Layout 36 | . 2 . . . 3 . . 3 . . . . 1 1 . . 3 6 . 1 . . . . 1 . 4 . . . . 2 1 . . 1 3 1 3 . Derelict Proto ID Bank 1 | . . . 1 . . . . . . . . . . . . . . . . . . . . . . . . . . . . . . . . . . . . . Disengage Seal 1 | . . . . . . . . . . . . . . . . . . . . . . . . . . . . . . . . . . . . . . . 1 . Fabricator Hacks 57 | . . . . . . . . 1 . . . . 3 . . . . 14 . 7 . . . . 2 . 10 . . . . 6 10 . . . . 4 . . Network Status 2 | . . . . . . . . 1 . . . . . . . . . . . 1 . . . . . . . . . . . . . . . . . . . . Load Schematic 31 | . . . . . . . . . . . . . 1 . . . . 8 . 4 . . . . 1 . 6 . . . . 3 6 . . . . 2 . . Build 24 | . . . . . . . . . . . . . 2 . . . . 6 . 2 . . . . 1 . 4 . . . . 3 4 . . . . 2 . . Repair Station Hacks 57 | . . . . . . . . 2 . . . . 14 . . . . 15 . . . . . . 6 . 10 . . . . 2 . . . 8 . . . . Scan Component 29 | . . . . . . . . 1 . . . . 8 . . . . 7 . . . . . . 3 . 5 . . . . 1 . . . 4 . . . . Repair 27 | . . . . . . . . 1 . . . . 6 . . . . 7 . . . . . . 3 . 5 . . . . 1 . . . 4 . . . . Refit 1 | . . . . . . . . . . . . . . . . . . 1 . . . . . . . . . . . . . . . . . . . . . . Recycling Unit Hacks 17 | . 1 . . . 1 . . 1 . . . . 1 . . . . 4 . 2 . . . . . . 3 . . . . 2 1 . . . . 1 . . Retrieve Components 17 | . 1 . . . 1 . . 1 . . . . 1 . . . . 4 . 2 . . . . . . 3 . . . . 2 1 . . . . 1 . . Scanalyzer 15 | . . . . . . . . . . . . . . . . . . 5 . . . . . . . . . . . . . 3 . . . 3 3 1 . . Insert Component 11 | . . . . . . . . . . . . . . . . . . 2 . . . . . . . . . . . . . 2 . . . 3 3 1 . . Analyze 4 | . . . . . . . . . . . . . . . . . . 3 . . . . . . . . . . . . . 1 . . . . . . . . Garrison Access Hacks 16 | . . . . . . . . 2 . . . . 3 . . . 1 2 . . . . . . . . 3 . . . . 2 . . . . 1 2 . . Seal Access 16 | . . . . . . . . 2 . . . . 3 . . . 1 2 . . . . . . . . 3 . . . . 2 . . . . 1 2 . . Unauthorized Hacks 112 | . . . . . 1 2 . 7 . . . . 3 1 . . 5 15 . 10 . . . . 8 . 16 . . . . 8 8 . . 2 8 8 10 . Terminals 54 | . . . . . . 2 . . . . . . . 1 . . 5 7 . 3 . . . . 5 . 6 . . . . . 2 . . 2 7 4 10 . Track 27 | . . . . . . . . . . . . . . . . . 1 3 . 2 . . . . 1 . 5 . . . . . 1 . . 1 5 3 5 . Assimilate 15 | . . . . . . 1 . . . . . . . . . . 1 3 . . . . . . 3 . 1 . . . . . 1 . . . 1 1 3 . Disrupt 1 | . . . . . . . . . . . . . . . . . . . . . . . . . . . . . . . . . . . . . . . 1 . Operators 8 | . . . . . . 1 . . . . . . . 1 . . . 1 . 1 . . . . 1 . . . . . . . . . . 1 1 . 1 . Sabotage 3 | . . . . . . . . . . . . . . . . . 3 . . . . . . . . . . . . . . . . . . . . . . . Fabricators 36 | . . . . . . . . 4 . . . . 2 . . . . 4 . 4 . . . . 3 . 7 . . . . 5 5 . . . . 2 . . Prioritize 15 | . . . . . . . . . . . . . 1 . . . . 1 . 1 . . . . 1 . 3 . . . . 3 3 . . . . 2 . . Liberate 5 | . . . . . . . . 3 . . . . . . . . . . . . . . . . 1 . 1 . . . . . . . . . . . . . Haulers 7 | . . . . . . . . 1 . . . . 1 . . . . . . 1 . . . . 1 . 1 . . . . 2 . . . . . . . . Recompile 9 | . . . . . . . . . . . . . . . . . . 3 . 2 . . . . . . 2 . . . . . 2 . . . . . . . Repair Stations . | . . . . . . . . . . . . . . . . . . . . . . . . . . . . . . . . . . . . . . . . . Recycling Units 21 | . . . . . 1 . . 3 . . . . 1 . . . . 4 . 3 . . . . . . 3 . . . . 3 1 . . . . 2 . . Reject 14 | . . . . . . . . 1 . . . . 1 . . . . 3 . 2 . . . . . . 3 . . . . 2 1 . . . . 1 . . Recyclers 6 | . . . . . 1 . . 1 . . . . . . . . . 1 . 1 . . . . . . . . . . . 1 . . . . . 1 . . Mask 1 | . . . . . . . . 1 . . . . . . . . . . . . . . . . . . . . . . . . . . . . . . . . Scanalyzers 1 | . . . . . . . . . . . . . . . . . . . . . . . . . . . . . . . . . . . . . 1 . . . Researchers 1 | . . . . . . . . . . . . . . . . . . . . . . . . . . . . . . . . . . . . . 1 . . . Garrison Access . | . . . . . . . . . . . . . . . . . . . . . . . . . . . . . . . . . . . . . . . . . Data Cores Recovered 3 | . . . . . . . . . . . . . . . . . . . . . . . . . . . 1 . . . . . . . . . 1 . 1 . Used 3 | . . . . . . . . . . . . . . . . . . . . . . . . . . . 1 . . . . . . . . . 1 . 1 . Hacking Detections 158 | . 5 . . 5 11 5 . 24 . . . . 14 5 . . 5 14 . 4 . . . . 6 . 14 . . . . 9 8 . 1 3 9 9 7 . Full Trace Events 13 | . . . . . . . . . . . . . 1 . . . 2 . . . . . . . 1 . 2 . . . . 3 2 . . . . 2 . . Feedback Events . | . . . . . . . . . . . . . . . . . . . . . . . . . . . . . . . . . . . . . . . . . Feedback Blocked . | . . . . . . . . . . . . . . . . . . . . . . . . . . . . . . . . . . . . . . . . . Robot Schematics Acquired 6 | . . . . . . . . . . . 5 . . . . . . 1 . . . . . . . . . . . . . . . . . . . . . . Robots Built 2 | . . . . . . . . . . . . . 2 . . . . . . . . . . . . . . . . . . . . . . . . . . . Authchips . | . . . . . . . . . . . . . . . . . . . . . . . . . . . . . . . . . . . . . . . . . Time 76 | . . . . . . . . . . . . . 76 . . . . . . . . . . . . . . . . . . . . . . . . . . . Total Robot Build Rating 10 | . . . . . . . . . . . . . 10 . . . . . . . . . . . . . . . . . . . . . . . . . . . Part Schematics Acquired 31 | . . . . . . . . 1 . . 10 . . . . . . 3 . . . . . . 2 . 1 . . 4 . 5 1 . . . 4 . . . Parts Built 27 | . . . . . . . . . . . . . 1 . . . . 9 . 3 . . . . 1 . 4 . . . . 3 4 . . . . 2 . . Authchips 11 | . . . . . . . . . . . . . . . . . . 5 . 2 . . . . . . 2 . . . . . 2 . . . . . . . Time 1376 | . . . . . . . . . . . . . 53 . . . . 469 . 74 . . . . 19 . 196 . . . . 241 250 . . . . 74 . . Total Part Build Rating 191 | . . . . . . . . . . . . . 6 . . . . 65 . 22 . . . . 7 . 20 . . . . 22 31 . . . . 18 . . Parts Repaired 27 | . . . . . . . . 1 . . . . 6 . . . . 7 . . . . . . 3 . 5 . . . . 1 . . . 4 . . . . Time 1384 | . . . . . . . . 38 . . . . 294 . . . . 538 . . . . . . 100 . 196 . . . . 36 . . . 182 . . . . Parts Recycled . | . . . . . . . . . . . . . . . . . . . . . . . . . . . . . . . . . . . . . . . . . Recycled Matter . | . . . . . . . . . . . . . . . . . . . . . . . . . . . . . . . . . . . . . . . . . Retrieved Matter . | . . . . . . . . . . . . . . . . . . . . . . . . . . . . . . . . . . . . . . . . . Retrieved Components 36 | . 10 . . . . . . . . . . . 2 . . . . 7 . 3 . . . . . . 11 . . . . 3 . . . . . . . . Parts Scanalyzed 3 | . . . . . . . . . . . . . . . . . . 2 . . . . . . . . . . . . . 1 . . . . . . . . Part Schematics Acquired 3 | . . . . . . . . . . . . . . . . . . 2 . . . . . . . . . . . . . 1 . . . . . . . . Parts Damaged 3 | . . . . . . . . . . . . . . . . . . 2 . . . . . . . . . . . . . 1 . . . . . . . . Bothacking | -11 -10 -10 -10 -8 -8 -7 -7 -7 -7 -7 -7 -6 -6 -6 -6 -6 -6 -5 -5 -5 -5 -5 -5 -4 -4 -4 -4 -4 -4 -4 -3 -3 -3 -3 -2 -2 -2 -1 -1 -1 ------------ Run | Jun Mat Min Sub Mat Sto Fac Was Fac Low Low Dat Pro Fac Ext Cet Arc Hub Fac Was Fac Upp Upp War Pro Fac Was Fac Upp Upp Zhi Pro Res Arm Lab Res Qua Sec Acc Com Ac0 Used RIF Installer . | . . . . . . . . . . . . . . . . . . . . . . . . . . . . . . . . . . . . . . . . . Robots Hacked 1 | . . . . . . . . . . . 1 . . . . . . . . . . . . . . . . . . . . . . . . . . . . . Non-combat . | . . . . . . . . . . . . . . . . . . . . . . . . . . . . . . . . . . . . . . . . . Combat 1 | . . . . . . . . . . . 1 . . . . . . . . . . . . . . . . . . . . . . . . . . . . . Robot Hacks Applied 1 | . . . . . . . . . . . 1 . . . . . . . . . . . . . . . . . . . . . . . . . . . . . parse_system 1 | . . . . . . . . . . . 1 . . . . . . . . . . . . . . . . . . . . . . . . . . . . . Relay Couplers Released 6 | . . . . . . . . . . . . . . . . . . . . . . . . . . . . . . . . 3 . . 3 . . . . . Machine Destruction 3 | . . . . . . . . . . . . . . . . . . . . . . . . . . . . . . . . . . . 3 . . . . . Programmers 3 | . . . . . . . . . . . . . . . . . . . . . . . . . . . . . . . . 3 . . . . . . . . Fabnet Peak Effective % . | . . . . . . . . . . . . . . . . . . . . . . . . . . . . . . . . . . . . . . . . . Robots Rewired 19 | . . . . . . . . . . . . . . 10 . . . . . . . 4 5 . . . . . . . . . . . . . . . . . Allies Hacked . | . . . . . . . . . . . . . . . . . . . . . . . . . . . . . . . . . . . . . . . . . Hacks Repelled . | . . . . . . . . . . . . . . . . . . . . . . . . . . . . . . . . . . . . . . . . . Allies | -11 -10 -10 -10 -8 -8 -7 -7 -7 -7 -7 -7 -6 -6 -6 -6 -6 -6 -5 -5 -5 -5 -5 -5 -4 -4 -4 -4 -4 -4 -4 -3 -3 -3 -3 -2 -2 -2 -1 -1 -1 -------- Run | Jun Mat Min Sub Mat Sto Fac Was Fac Low Low Dat Pro Fac Ext Cet Arc Hub Fac Was Fac Upp Upp War Pro Fac Was Fac Upp Upp Zhi Pro Res Arm Lab Res Qua Sec Acc Com Ac0 Total Allies 73 | . . . . . 2 . 19 5 . . . 1 2 18 5 . 1 3 . . . 4 5 . 2 . 3 . . . . . 1 . . . 1 . 1 . Largest Group 16 | . . . . . 2 . 16 3 . . . 1 2 8 10 7 4 1 . . . 4 5 . 2 . 3 . . . . . 1 . . . 1 . 1 . Highest-Rated Group 643 | . . . . . 62 . 425 90 . . . 96 82 383 643 404 251 26 . . . 85 237 . 48 . 141 . . . . . 10 . . . 10 . 45 . Highest-Rated Ally 159 | . . . . . 31 . 35 32 . . . 96 41 159 159 96 96 26 . . . 25 65 . 26 . 47 . . . . . 10 . . . 10 . 45 . Total Orders 230 | . . . . . . . . . . . . . 1 . . . . 6 . 3 21 22 30 11 5 . 20 38 10 1 33 2 24 . . . . . 3 . STAY 54 | . . . . . . . . . . . . . 1 . . . . 5 . . . 5 15 . 2 . 3 6 . . 14 . 1 . . . . . 2 . FOLLOW 25 | . . . . . . . . . . . . . . . . . . 1 . 1 2 2 10 . 1 . 1 2 . . 3 . 1 . . . . . 1 . EXPLORE 22 | . . . . . . . . . . . . . . . . . . . . . 5 4 4 1 . . 1 4 2 . . . 1 . . . . . . . RETURN 129 | . . . . . . . . . . . . . . . . . . . . 2 14 11 1 10 2 . 15 26 8 1 16 2 21 . . . . . . . Ally Attacks 1152 | . . . . . 4 . 115 9 . . . 27 9 96 72 29 49 . . 15 50 75 14 52 3 . 93 86 51 . 144 7 152 . . . . . . . Total Damage 25064 | . . . . . 41 . 2975 343 . . . 1199 396 2032 1543 788 1422 . . 215 776 1602 457 1105 84 . 2022 1641 992 . 2274 124 3033 . . . . . . . Kills 158 | . . . . . . . 13 3 . . . 4 3 18 10 5 9 . . 5 11 10 4 11 . . 11 14 3 . 11 1 12 . . . . . . . Allies Corrupted 3 | . . . . . . . . . . . . . . . . . . 1 . . . . 1 . 1 . . . . . . . . . . . . . . . Allies Melted 1 | . . . . . . . . . . . . . . . . . . . . . . . . . . . . . . . . . . . . . . . 1 . Intel | -11 -10 -10 -10 -8 -8 -7 -7 -7 -7 -7 -7 -6 -6 -6 -6 -6 -6 -5 -5 -5 -5 -5 -5 -4 -4 -4 -4 -4 -4 -4 -3 -3 -3 -3 -2 -2 -2 -1 -1 -1 ------- Run | Jun Mat Min Sub Mat Sto Fac Was Fac Low Low Dat Pro Fac Ext Cet Arc Hub Fac Was Fac Upp Upp War Pro Fac Was Fac Upp Upp Zhi Pro Res Arm Lab Res Qua Sec Acc Com Ac0 Robot Analysis Total 9 | . 1 . . . . . . 1 . . . . . . . . . . . . . . . . . . . . . 4 . . 2 . . . 1 . . . Derelict Logs Recovered 18 | . . . 2 . . . . . 1 1 . 2 . . . . . . . . 2 3 . 2 . . . 2 3 . . . . . . . . . . . Drone Launches 189 | . . . . . . . . . . . . . . . . . . . . 2 23 9 2 17 3 . 27 36 8 5 24 4 29 . . . . . . . Drone Recoveries 184 | . . . . . . . . . . . . . . . . . . . . 2 19 13 2 15 2 . 23 36 11 2 26 4 29 . . . . . . . Exploration | -11 -10 -10 -10 -8 -8 -7 -7 -7 -7 -7 -7 -6 -6 -6 -6 -6 -6 -5 -5 -5 -5 -5 -5 -4 -4 -4 -4 -4 -4 -4 -3 -3 -3 -3 -2 -2 -2 -1 -1 -1 ------------- Run | Jun Mat Min Sub Mat Sto Fac Was Fac Low Low Dat Pro Fac Ext Cet Arc Hub Fac Was Fac Upp Upp War Pro Fac Was Fac Upp Upp Zhi Pro Res Arm Lab Res Qua Sec Acc Com Ac0 Turns Passed 32999 | 129 1008 42 2624 1260 2053 101 96 861 133 217 38 132 1099 1075 198 258 366 1435 121 842 525 634 808 400 714 158 2337 1117 725 152 722 1002 1638 496 1058 737 852 1126 3013 697 Spaces Moved 38976 | 63 483 25 1433 484 708 257 312 2126 303 679 91 477 2422 1426 269 354 747 3148 145 817 636 727 744 507 843 207 2739 1232 913 173 644 1462 1793 360 1554 977 1021 1483 3067 1125 Core 20 | . . . . . . . . . . . . . . . . . . . . . . . . . . . . . . . . . . . . . . . 20 . Treads 3174 | 59 483 25 1433 484 690 . . . . . . . . . . . . . . . . . . . . . . . . . . . . . . . . . . . Legs 4 | 4 . . . . . . . . . . . . . . . . . . . . . . . . . . . . . . . . . . . . . . . . Wheels . | . . . . . . . . . . . . . . . . . . . . . . . . . . . . . . . . . . . . . . . . . Hover 23216 | . . . . . . . . . . . . . . . . . . 150 145 817 636 727 744 507 843 207 2739 1232 913 173 644 1462 1793 360 1554 977 938 1483 3047 1125 Flight 12479 | . . . . . 18 257 312 2126 303 679 91 477 2422 1426 269 354 747 2998 . . . . . . . . . . . . . . . . . . . . . . Fastest Speed 20 | 120 160 160 160 160 26 23 23 23 23 23 23 23 23 23 23 23 20 20 68 65 65 65 65 65 65 65 65 65 65 47 47 56 49 56 56 47 59 47 42 32 Average Speed 56 | 157 160 160 161 207 232 23 23 23 25 23 38 23 23 23 23 23 22 22 68 67 65 65 65 65 65 65 65 65 65 56 63 56 55 56 56 53 59 53 47 37 Slowest Speed 250 | 160 160 160 240 240 240 23 23 96 93 23 93 23 23 23 23 23 23 147 68 68 65 65 65 65 138 65 65 65 65 116 65 56 59 56 56 59 133 59 250 42 Overloaded Moves 463 | . . . . . . . . . . . . . . . . . 26 . . . . . . . . . . . . . . . 209 . . 65 . . . 163 Propulsion Burnouts . | . . . . . . . . . . . . . . . . . . . . . . . . . . . . . . . . . . . . . . . . . Robots Hopped 53 | . . . . . . . . 4 . . . 3 9 17 1 . 4 15 . . . . . . . . . . . . . . . . . . . . . . Cave-ins Triggered . | . . . . . . . . . . . . . . . . . . . . . . . . . . . . . . . . . . . . . . . . . Teleports 4 | . . . . . . . . . . . . . . . . . . . . . . . . . . . . . . . . . 1 . . 1 . . 1 1 Microwarps 6 | . . . . . . . . . . . . . . . . . . . . . . . . . . . . . . . . . . . . . 6 . . . Exploration Rate (%) 62 | 5 74 7 72 59 92 10 94 69 45 68 75 70 56 83 72 97 38 37 87 14 94 82 96 66 11 81 55 98 98 61 74 39 57 95 34 70 60 32 78 38 Regions Visited 40 Branch Regions 25 Pre-discovered Areas 15 | . . . 1 . . . . . . . 1 . . . . . . . . . 2 1 . 2 . . . 1 3 3 1 . . . . . . . . . Known Exits Taken 26 | . . . . . 1 . . 1 . 1 . 1 1 1 1 1 1 . . 1 1 1 1 1 . . 1 1 1 1 1 1 1 1 1 1 1 1 . . Unknown Exits Taken 8 | 1 1 1 1 1 . . . . 1 . 1 . . . . . . . . . . . . . . . . . . . . . . . . . . . 1 . Scrap Searched 27 | . . . 4 . . . . . 1 3 . . . . . . . . . . 5 3 . 1 . . . 4 4 . 2 . . . . . . . . . Spaces Dug 506 | . 4 . 1 6 6 7 . 56 . 4 . 3 60 . . . 26 39 1 13 . 5 18 1 12 5 38 19 8 . 12 17 35 . 16 9 16 46 22 1 Terrain Destroyed 1169 | . 5 . 75 7 39 7 . 56 8 4 . 3 67 36 . . 198 44 1 15 2 5 50 77 15 8 119 43 57 . 15 20 59 . 20 10 22 59 22 1 Melee 320 | . . . . . 6 7 . 56 . 4 . 3 43 . . . 8 34 . 9 . 2 18 1 8 . 23 6 4 . 2 6 11 . 5 8 13 21 21 1 Projectile 267 | . 5 . 3 1 4 . . . . . . . 4 . . . 2 10 1 6 2 3 . . 7 8 24 37 10 . 13 14 48 . 15 2 9 38 1 . AOE 582 | . . . 72 6 29 . . . 8 . . . 20 36 . . 188 . . . . . 32 76 . . 72 . 43 . . . . . . . . . . . Terrain Rammed . | . . . . . . . . . . . . . . . . . . . . . . . . . . . . . . . . . . . . . . . . . Walls Destroyed . | . . . . . . . . . . . . . . . . . . . . . . . . . . . . . . . . . . . . . . . . . Machines Disabled . | . . . . . . . . . . . . . . . . . . . . . . . . . . . . . . . . . . . . . . . . . Actions | -11 -10 -10 -10 -8 -8 -7 -7 -7 -7 -7 -7 -6 -6 -6 -6 -6 -6 -5 -5 -5 -5 -5 -5 -4 -4 -4 -4 -4 -4 -4 -3 -3 -3 -3 -2 -2 -2 -1 -1 -1 --------- Run | Jun Mat Min Sub Mat Sto Fac Was Fac Low Low Dat Pro Fac Ext Cet Arc Hub Fac Was Fac Upp Upp War Pro Fac Was Fac Upp Upp Zhi Pro Res Arm Lab Res Qua Sec Acc Com Ac0 Total 47538 | 75 608 26 1667 672 957 282 335 2357 350 723 93 489 2792 2087 381 513 900 3748 165 1061 743 878 1020 567 963 224 3152 1497 1020 218 926 1587 2319 636 1703 1122 1135 1690 4514 1343 Wait 5298 | . 39 . 171 73 39 5 22 56 38 35 . 13 201 454 96 121 128 397 16 137 93 114 195 44 72 10 237 184 83 10 251 31 339 235 50 44 59 40 1114 52 Move 38762 | 62 482 24 1432 483 707 257 311 2117 302 678 90 471 2403 1399 266 353 738 3118 144 816 635 726 743 506 843 206 2738 1231 912 172 643 1461 1792 359 1553 976 943 1482 3064 1124 Hop 44 | . . . . . . . . 4 . . . 2 9 9 1 . 4 15 . . . . . . . . . . . . . . . . . . . . . . Pick Up 327 | . 12 . 8 24 19 4 1 10 1 2 . . 16 2 1 3 . 40 2 17 3 . 3 2 4 2 14 5 1 2 . 9 20 10 18 7 8 9 32 16 Fast Attach 202 | 1 . . . 16 14 . . 6 . . . . 7 1 . 8 . 14 . 7 . 5 8 . . . 5 6 . 10 1 12 7 3 8 11 11 11 25 5 Attach 120 | . . . 4 5 9 4 . 4 . . 1 . 7 1 . 2 2 15 1 9 . . 2 1 4 . 8 . . 3 . 2 4 2 4 4 4 2 12 4 Detach 73 | . . . . . 2 1 . 5 . . 1 . 2 1 . 3 . 7 . 5 . 2 5 . . . 3 3 . 4 . 3 1 . 3 3 4 4 11 . Swap 401 | 3 4 . 10 7 22 1 . 12 5 . . . 27 9 2 1 4 28 1 15 4 1 2 1 9 . 28 12 3 . 8 8 33 4 12 26 34 37 21 7 Drop 396 | . 8 . 3 25 45 1 1 16 1 . . . 16 3 1 10 . 36 . 19 3 2 10 3 . . 14 8 1 9 1 16 21 10 19 12 13 17 36 16 Fire 601 | 9 55 . 39 32 76 . . . 1 . . . 6 10 . . 4 10 1 7 . 4 11 7 12 6 39 35 15 . 19 19 69 3 30 2 17 42 13 8 Melee 929 | . . . . . 20 9 . 70 2 8 1 3 73 35 14 12 20 66 . 25 2 3 24 1 19 . 64 8 4 7 3 26 29 10 6 37 42 46 129 111 Ram . | . . . . . . . . . . . . . . . . . . . . . . . . . . . . . . . . . . . . . . . . . Kick . | . . . . . . . . . . . . . . . . . . . . . . . . . . . . . . . . . . . . . . . . . Crush 21 | . 8 2 . 7 4 . . . . . . . . . . . . . . . . . . . . . . . . . . . . . . . . . . . Escape Stasis 146 | . . . . . . . . 18 . . . . 21 50 . . . . . . . . . . . . . . . . . . . . . . . . 57 . Rewire 151 | . . . . . . . . . . . . . . 113 . . . . . . . 21 17 . . . . . . . . . . . . . . . . . Trap 54 | . . . . . . . . 39 . . . . 4 . . . . 2 . 4 . . . . . . 1 . . . . . 4 . . . . . . . Miscellaneous 13 | . . . . . . . . . . . . . . . . . . . . . 3 . . 2 . . 1 5 1 1 . . . . . . . . . . Route ------- -11/Junkyard -10/Materials (discovered 3 exits: [*Mat x2] / [*Min]) -10/Mines (discovered 2 exits: [*Mat] / *Sub) -10/Subcaves (discovered 2 exits: *Mat / Rec) -8/Materials (discovered 2 exits: *Fac / *Sto) -8/Storage (discovered 2 exits: *Fac / Rec) -7/Factory (discovered 3 exits: *Fac / *Low x2) -7/Waste -7/Factory (discovered 5 exits: *Fac x3 / *Low x2) -7/Lower Caves -7/Lower Caves (discovered 2 exits: *Fac / *Dat) -7/Data Miner -6/Proximity Caves -6/Factory (discovered 7 exits: Fac x4 / *Low / *Ext x2) -6/Extension (discovered 2 exits: *Fac / *Cet) -6/Cetus (discovered 2 exits: *Fac / *Arc) -6/Archives (discovered 3 exits: *Fac / *Hub x2) -6/Hub_04(d) -5/Factory -5/Waste -5/Factory (discovered 2 exits: Fac / *Upp) -5/Upper Caves -5/Upper Caves (discovered 2 exits: *Fac / *War) -5/Warlord -4/Proximity Caves -4/Factory (discovered 3 exits: Res / Upp x2) -4/Waste -4/Factory (discovered 3 exits: *Res / *Upp x2) -4/Upper Caves -4/Upper Caves (discovered 2 exits: *Res / *Zhi) -4/Zhirov -3/Proximity Caves -3/Research (discovered 5 exits: *Res x2 / *Arm / *Tes x2) -3/Armory -3/Lab -2/Research (discovered 3 exits: *Acc / *Qua x2) -2/Quarantine (discovered 2 exits: *Acc / *Sec) -2/Section 7 -1/Access -1/Command (discovered 3 exits: *Sur x2 / [*Ac0]) -1/Access_0 Near Former Tau Ceti IV History --------- Turn | Location | Event 1 | -11/Junkyard | Discovered new exit (range 2) 130 | -11/Junkyard | Entered Materials 302 | -10/Materials | Build established: Mutant 499 | -10/Materials | Discovered new exit (range 14) 682 | -10/Materials | Discovered new exit (range 6) 916 | -10/Materials | Discovered new exit (range 16) 1138 | -10/Materials | Entered Mines 1162 | -10/Mines | Discovered new exit (range 5) 1167 | -10/Mines | Discovered new exit (range 9) 1180 | -10/Mines | Entered Subcaves 1185 | -10/Subcaves | Identified exit to Recycling 1880 | -10/Subcaves | Shifting Twisted Machinery released Sub. Laser 1887 | -10/Subcaves | Shifting Twisted Machinery released Sub. Machine Gun 2131 | -10/Subcaves | Discovered new exit (range 12) 2268 | -10/Subcaves | A swath of the cavern ceiling suddenly collapsed 2384 | -10/Subcaves | Learned location of Zion (-6) 2384 | -10/Subcaves | Met a Zionite searching for "candidates" 2439 | -10/Subcaves | Ambushed by Subdweller buried in earth 2439 | -10/Subcaves | Ambushed by Subdweller buried in earth 2448 | -10/Subcaves | Core integrity fell below 50% 2868 | -10/Subcaves | Visited Clippyterm 3389 | -10/Subcaves | Visited 4L-MR0's lab 3406 | -10/Subcaves | Found Arachnoskeleton 3804 | -10/Subcaves | Entered Materials 3804 | -8/Materials | Evolved 4 slots: Propulsion x2, Utility x2 4145 | -8/Materials | Build established: Subdweller-Mutant 4334 | -8/Materials | Discovered new exit (range 3) 4342 | -8/Materials | Identified exit to Factory 4566 | -8/Materials | Build established: Scavenger-Mutant 5016 | -8/Materials | Discovered new exit (range 4) 5050 | -8/Materials | Garrison activated, responded to threat 5064 | -8/Materials | Entered Storage 5714 | -8/Storage | Discovered exit to Factory (range 15) 6176 | -8/Storage | Garrison activated, responded to threat 6699 | -8/Storage | Met a pair of Derelict thieves 6801 | -8/Storage | Destroyed 9 combat bots 6905 | -8/Storage | Build established: Mutant 7079 | -8/Storage | System corruption reached 10% 7117 | -8/Storage | Entered Factory 7117 | -7/Factory | Evolved 2 slots: Propulsion x1, Utility x1 7125 | -7/Factory | Identified exit to DSF 7136 | -7/Factory | Identified exit to Lower Caves 7168 | -7/Factory | Discovered new exit (range 18) 7218 | -7/Factory | Manually triggered Chute Trap 7218 | -7/Factory | Sucked down chute 7218 | -7/Factory | Entered Waste 7224 | -7/Waste | Spotted C-40 Crusher 7227 | -7/Waste | Spotted C-40 Crusher 7227 | -7/Waste | Spotted C-40 Crusher 7230 | -7/Waste | Warlord forces began an assault 7230 | -7/Waste | Discovered new exit (range 20) 7231 | -7/Waste | Spotted C-40 Crusher 7234 | -7/Waste | Spotted C-40 Crusher 7238 | -7/Waste | Spotted C-40 Crusher 7250 | -7/Waste | Allies destroyed C-40 Crusher 7263 | -7/Waste | Allies destroyed C-40 Crusher 7274 | -7/Waste | Allies destroyed C-40 Crusher 7283 | -7/Waste | Allies destroyed C-40 Crusher 7314 | -7/Waste | Entered Factory 7424 | -7/Factory | Build established: Sprinter 7531 | -7/Factory | Discovered new exit (range 10) 7612 | -7/Factory | Repaired Imp. Light Armor Plating 7756 | -7/Factory | Discovered new exit (range 15) 7820 | -7/Factory | Discovered new exit (range 8) 8175 | -7/Factory | Entered Lower Caves 8186 | -7/Lower Caves | Encountered a Warlord checkpoint 8198 | -7/Lower Caves | Learned Factory terminal intel 8305 | -7/Lower Caves | Discovered new exit (range 9) 8308 | -7/Lower Caves | Entered another Lower Caves area 8315 | -7/Lower Caves | Discovered new exit (range 5) 8357 | -7/Lower Caves | Learned Factory stockpile data 8357 | -7/Lower Caves | Learned location of 1 exit from Research 8357 | -7/Lower Caves | Learned location of 1 exit from Factory 8365 | -7/Lower Caves | Destroyed UX-QPL(g) 8501 | -7/Lower Caves | Identified exit to Data Miner 8525 | -7/Lower Caves | Entered Data Miner 8525 | -7/Data Miner | Discovered new exit (range 6) 8534 | -7/Data Miner | Met Data Miner 8553 | -7/Data Miner | Learned location of Section 7 (-2) 8553 | -7/Data Miner | Acquired the access code to Warlord's prototype stash 8557 | -7/Data Miner | Received God Mode back door access code from Data Miner 8563 | -7/Data Miner | Entered Proximity Caves 8564 | -6/Proximity Caves | Identified exit to Factory 8566 | -6/Proximity Caves | Spotted B-75 Beast 8637 | -6/Proximity Caves | Learned location of 1 exit from Factory 8646 | -6/Proximity Caves | Spotter reported a threat 8653 | -6/Proximity Caves | Spotter reported a threat 8659 | -6/Proximity Caves | Learned Factory non-interactive machine intel 8695 | -6/Proximity Caves | Entered Factory 8695 | -6/Factory | Evolved 2 slots: Utility x2 8696 | -6/Factory | Identified exit to Factory 8697 | -6/Factory | Identified exit to Lower Caves 8699 | -6/Factory | Loaded intel: 180 non-interactive machine locations 8700 | -6/Factory | Loaded intel: 28 terminal locations 8729 | -6/Factory | Spotted B-75 Beast 8763 | -6/Factory | Repaired Imp. VTOL Module 8825 | -6/Factory | Repaired Imp. VTOL Module? 8890 | -6/Factory | Repaired Imp. Propulsion Shielding? 8934 | -6/Factory | Discovered new exit (range 13) 8977 | -6/Factory | Repaired Imp. VTOL Module? 8987 | -6/Factory | Repaired Imp. Light Armor Plating? 9045 | -6/Factory | Search patrols dispatched 9148 | -6/Factory | Repaired Imp. Light Armor Plating? 9317 | -6/Factory | Build established: Scout 9395 | -6/Factory | Search patrols dispatched 9561 | -6/Factory | Fabricated Adv. Hacking Suite? 9622 | -6/Factory | Fabricated H-66 Slayer? 9665 | -6/Factory | Cargo convoy interrupted 9695 | -6/Factory | Incoming assault squad redirected 9751 | -6/Factory | Found Prototype Slashing Weapon 9751 | -6/Factory | Identified Vibroblade 9787 | -6/Factory | Discovered new exit (range 10) 9794 | -6/Factory | Identified exit to Extension 9794 | -6/Factory | Entered Extension 9841 | -6/Extension | Rescued a captive Derelict 9860 | -6/Extension | Rescued a captive Derelict 10232 | -6/Extension | Rescued a captive Derelict 10234 | -6/Extension | Rescued a captive Derelict 10311 | -6/Extension | Rescued A7 10443 | -6/Extension | Spotted B-75 Beast 10463 | -6/Extension | Destroyed B-75 Beast 10469 | -6/Extension | Spotted B-75 Beast 10500 | -6/Extension | Allies destroyed B-75 Beast 10553 | -6/Extension | Rescued a captive Derelict 10555 | -6/Extension | Rescued a captive Derelict 10586 | -6/Extension | Rescued a captive Derelict 10594 | -6/Extension | Disrupted transfer network 10750 | -6/Extension | Build established: Sprinter 10759 | -6/Extension | Energy Cycler disabled 10759 | -6/Extension | Rescued a captive Derelict 10765 | -6/Extension | Rescued a captive Derelict 10826 | -6/Extension | Discovered exit to Factory (range 10) 10826 | -6/Extension | Discovered new exit (range 6) 10827 | -6/Extension | Identified exit to Cetus 10869 | -6/Extension | Entered Cetus 10869 | -6/Cetus | Accompanied by 8 allies (A7) 10874 | -6/Cetus | Acquired a Cetus Manufacturing Module code from A7 10877 | -6/Cetus | Spotted Cetus Guard 10880 | -6/Cetus | Spotted Cetus Guard 10881 | -6/Cetus | Spotted Cetus Guard 10887 | -6/Cetus | Spotted Cetus Guard 10888 | -6/Cetus | Allies destroyed Cetus Guard 10890 | -6/Cetus | Destroyed Cetus Guard 10902 | -6/Cetus | Allies destroyed Cetus Guard 10906 | -6/Cetus | Destroyed Cetus Guard 10929 | -6/Cetus | Started Cetus Manufacturing Module 10930 | -6/Cetus | Discovered new exit (range 22) 10954 | -6/Cetus | Manufactured an Enhanced Grunt 10979 | -6/Cetus | Manufactured an Enhanced Grunt 10985 | -6/Cetus | Spotted Cetus Guard 10985 | -6/Cetus | Spotted Cetus Guard 10985 | -6/Cetus | Spotted Cetus Guard 10989 | -6/Cetus | Spotted Cetus Guard 10989 | -6/Cetus | Allies destroyed Cetus Guard 10993 | -6/Cetus | Allies destroyed Cetus Guard 10996 | -6/Cetus | Discovered exit to Factory (range 23) 11003 | -6/Cetus | Allies destroyed Cetus Guard 11004 | -6/Cetus | Manufactured an Enhanced Grunt 11008 | -6/Cetus | Allies destroyed Cetus Guard 11029 | -6/Cetus | Manufactured an Enhanced Grunt 11029 | -6/Cetus | Identified exit to Archives 11054 | -6/Cetus | Manufactured an Enhanced Grunt 11061 | -6/Cetus | Destroyed A7 11063 | -6/Cetus | Extracted ID and sensor layout for unrecognized location from A7's data core 11067 | -6/Cetus | Entered Archives 11067 | -6/Archives | Accompanied by 7 allies 11089 | -6/Archives | Build established: Commander-Sprinter 11102 | -6/Archives | Discovered new exit (range 22) 11107 | -6/Archives | Discovered new exit (range 22) 11110 | -6/Archives | Discovered exit to Factory (range 16) 11239 | -6/Archives | Identified exit to Hub_04(d) 11298 | -6/Archives | Found Prototype Device 11298 | -6/Archives | Identified Exp. Thermal Shield 11325 | -6/Archives | Entered Hub_04(d) 11325 | -6/Hub_04(d) | Accompanied by 4 allies 11418 | -6/Hub_04(d) | Discovered exit to Factory (range 14) 11436 | -6/Hub_04(d) | Build established: Hacker-Scout 11527 | -6/Hub_04(d) | Network Hub disabled 11553 | -6/Hub_04(d) | Incoming investigation squad redirected 11627 | -6/Hub_04(d) | Incoming investigation squad redirected 11676 | -6/Hub_04(d) | Network Hub disabled 11691 | -6/Hub_04(d) | Entered Factory 11691 | -5/Factory | Evolved 2 slots: Power x1, Propulsion x1 11777 | -5/Factory | Repaired Imp. VTOL Module 11905 | -5/Factory | Repaired Imp. VTOL Module 11998 | -5/Factory | Repaired Cld. Nuclear Pulse Thruster 12109 | -5/Factory | Repaired Centrium Medium Armor Plating? 12254 | -5/Factory | Build established: Hacker-Sprinter 12323 | -5/Factory | Repaired Broken Cld. Nuclear Pulse Thruster? 12359 | -5/Factory | Incoming investigation squad redirected 12368 | -5/Factory | Fabricated Cmb. Antigrav System? 12423 | -5/Factory | Fabricated Adv. Hacking Suite? 12554 | -5/Factory | Discovered new exit (range 13) 12576 | -5/Factory | Repaired Broken Cmb. Antigrav System? 12589 | -5/Factory | Fabricated Cmb. Antigrav System? 12679 | -5/Factory | Fabricated Combat Drone Bay? 12684 | -5/Factory | Repaired Mic. Nuclear Core? 12851 | -5/Factory | Fabricated Exp. Utility Shielding (x1) 12937 | -5/Factory | Fabricated Cmb. Antigrav System? 13126 | -5/Factory | Sucked down chute 13126 | -5/Factory | Entered Waste 13141 | -5/Waste | EMP discharged 13141 | -5/Waste | System corruption reached 10% 13159 | -5/Waste | Spotted C-40 Crusher 13160 | -5/Waste | Spotted C-40 Crusher 13162 | -5/Waste | Spotted C-40 Crusher 13174 | -5/Waste | Spotted C-40 Crusher 13216 | -5/Waste | Spotted C-40 Crusher 13223 | -5/Waste | Crushed by Compactor (1 part destroyed) 13226 | -5/Waste | Spotted C-40 Crusher 13235 | -5/Waste | Discovered new exit (range 15) 13241 | -5/Waste | EMP discharged 13246 | -5/Waste | Identified exit to Factory 13247 | -5/Waste | Entered Factory 13285 | -5/Factory | Build established: Machinist-Mutant 13309 | -5/Factory | Spotted B-75 Beast 13397 | -5/Factory | Fabricated Cmb. Antigrav System? 13509 | -5/Factory | Fabricated Combat Drone Bay (x1) 13534 | -5/Factory | Discovered new exit (range 16) 13550 | -5/Factory | Identified exit to Upper Caves 13749 | -5/Factory | Found Prototype Launcher 13770 | -5/Factory | Identified Mni. Smartbomb Launcher 13829 | -5/Factory | Discovered new exit (range 16) 13936 | -5/Factory | Cargo convoy interrupted 13974 | -5/Factory | Found Prototype Processor 13974 | -5/Factory | Identified Exp. Target Analyzer 13976 | -5/Factory | Found Prototype Device 13976 | -5/Factory | Identified Exp. Focal Shield 14089 | -5/Factory | Entered Upper Caves 14147 | -5/Upper Caves | Learned location of Warlord (-5) 14249 | -5/Upper Caves | Encountered a Warlord checkpoint 14400 | -5/Upper Caves | Discovered new exit (range 12) 14608 | -5/Upper Caves | Identified exit to Upper Caves 14614 | -5/Upper Caves | Entered another Upper Caves area 14614 | -5/Upper Caves | Accompanied by 4 allies 14614 | -5/Upper Caves | Discovered new exit (range 21) 14694 | -5/Upper Caves | Learned location of Armory (-3) 14726 | -5/Upper Caves | Spotted B-75 Beast 14741 | -5/Upper Caves | Allies destroyed B-75 Beast 14781 | -5/Upper Caves | Learned location of 2 exits from Factory 14882 | -5/Upper Caves | Found Alien Artifact 14882 | -5/Upper Caves | Identified Dimensional Node Initializer 14882 | -5/Upper Caves | Initialized slip node 14932 | -5/Upper Caves | Discovered new exit (range 28) 15037 | -5/Upper Caves | Learned Factory stockpile data 15095 | -5/Upper Caves | Attacked by a delusional Derelict stockpiling Unaware 15205 | -5/Upper Caves | Identified exit to Warlord 15248 | -5/Upper Caves | Entered Warlord 15248 | -5/Warlord | Accompanied by 4 allies 15274 | -5/Warlord | System corruption cleaned by Quarantine Array 15292 | -5/Warlord | Discovered new exit (range 24) 15544 | -5/Warlord | Visited the Vortex Lab 15551 | -5/Warlord | Found Prototype Energy Gun 15551 | -5/Warlord | Identified Vortex Shotgun 15559 | -5/Warlord | Found Vortex Shotgun 15564 | -5/Warlord | Warlord's base attacked by MAIN.C 15608 | -5/Warlord | Met Warlord 15616 | -5/Warlord | Opened Warlord's prototype stash 15624 | -5/Warlord | Found System Mapper 15630 | -5/Warlord | Found Prototype Reactor 15630 | -5/Warlord | Identified Vortex Chain Reactor 15914 | -5/Warlord | Warlord forces counterattacked 15921 | -5/Warlord | Spotted Executioner 15926 | -5/Warlord | Spotted Striker 15953 | -5/Warlord | Spotted Striker 16010 | -5/Warlord | Spotted Executioner 16027 | -5/Warlord | Found Prototype Processor 16027 | -5/Warlord | Identified Exp. Core Analyzer 16056 | -5/Warlord | Identified exit to Proximity Caves 16056 | -5/Warlord | Entered Proximity Caves 16400 | -4/Proximity Caves | Discovered new exit (range 9) 16419 | -4/Proximity Caves | Identified exit to Factory 16456 | -4/Proximity Caves | Entered Factory 16456 | -4/Factory | Evolved 2 slots: Utility x2 16457 | -4/Factory | Identified exit to Upper Caves 16457 | -4/Factory | Identified exit to Research 16530 | -4/Factory | Repaired Cmb. Antigrav System 16691 | -4/Factory | Central database locked down 16696 | -4/Factory | Found Prototype Hackware 16721 | -4/Factory | Repaired Mni. Smartbomb Launcher? 16757 | -4/Factory | Build established: Hacker-Mutant 16857 | -4/Factory | Repaired Cmb. Antigrav System? 16979 | -4/Factory | Incoming investigation squad redirected 16981 | -4/Factory | Fabricated Lrn. Sensor Array? 17170 | -4/Factory | Manually triggered Chute Trap 17170 | -4/Factory | Sucked down chute 17170 | -4/Factory | Entered Waste 17186 | -4/Waste | Spotted C-40 Crusher 17204 | -4/Waste | Spotted C-40 Crusher 17205 | -4/Waste | Spotted C-40 Crusher 17208 | -4/Waste | Spotted C-40 Crusher 17229 | -4/Waste | Spotted C-40 Crusher 17229 | -4/Waste | Spotted C-40 Crusher 17303 | -4/Waste | Discovered new exit (range 15) 17312 | -4/Waste | Found Prototype Device 17326 | -4/Waste | Identified exit to Factory 17328 | -4/Waste | Entered Factory 17997 | -4/Factory | Fabricated Combat Drone Bay? 18045 | -4/Factory | Identified Exp. System Shield 18084 | -4/Factory | Repaired Imp. Energy Mantle 18127 | -4/Factory | Repaired Cmb. Antigrav System 18162 | -4/Factory | Repaired Cmb. Antigrav System 18504 | -4/Factory | Incoming investigation squad redirected 18547 | -4/Factory | Repaired Cmb. Antigrav System? 18578 | -4/Factory | Fabricated Lrn. Sensor Array? 18724 | -4/Factory | Garrison activated, responded to threat 18779 | -4/Factory | Discovered exit to Research (range 10) 18816 | -4/Factory | Repaired Cld. Plasma Cannon? 18824 | -4/Factory | Build established: Wizard-Mutant 18828 | -4/Factory | First assault squad dispatched 18924 | -4/Factory | Fabricated Combat Drone Bay? 19454 | -4/Factory | Fabricated ECM Suite (x1) 19665 | -4/Factory | Entered Upper Caves 19665 | -4/Upper Caves | Accompanied by 4 allies 20123 | -4/Upper Caves | Discovered new exit (range 9) 20227 | -4/Upper Caves | Spotted B-86 Titan 20385 | -4/Upper Caves | Allies destroyed B-86 Titan 20402 | -4/Upper Caves | Learned location of Testing (-3) 20592 | -4/Upper Caves | Attracted the attention of an 0b10 base 20658 | -4/Upper Caves | Learned Extension garrison access intel 20658 | -4/Upper Caves | Learned Armory trap positions 20658 | -4/Upper Caves | Learned 8 Research zone layouts 20658 | -4/Upper Caves | Learned location of 1 exit from Research 20777 | -4/Upper Caves | Identified exit to Upper Caves 20782 | -4/Upper Caves | Entered another Upper Caves area 20782 | -4/Upper Caves | Accompanied by 4 allies 20813 | -4/Upper Caves | Attracted the attention of an 0b10 checkpoint 20862 | -4/Upper Caves | Discovered exit to Research (range 6) 21032 | -4/Upper Caves | Learned location of Quarantine (-2) 21165 | -4/Upper Caves | Discovered new exit (range 5) 21506 | -4/Upper Caves | Identified exit to Zhirov 21507 | -4/Upper Caves | Entered Zhirov 21507 | -4/Zhirov | Discovered new exit (range 4) 21521 | -4/Zhirov | Met Zhirov 21533 | -4/Zhirov | Learned location of Command (-1) 21544 | -4/Zhirov | Zhirov requested help retrieving the SGEMP Prototype 21554 | -4/Zhirov | Found Alien Artifact 21554 | -4/Zhirov | Identified Integrated Dissipator 21554 | -4/Zhirov | Installed Integrated Dissipator, increased core heat dissipation (+20) 21603 | -4/Zhirov | Found Alien Artifact 21651 | -4/Zhirov | Identified exit to Proximity Caves 21659 | -4/Zhirov | Entered Proximity Caves 21659 | -3/Proximity Caves | Accompanied by 3 allies 22030 | -3/Proximity Caves | Attracted the attention of an 0b10 base 22058 | -3/Proximity Caves | Learned Factory trap positions 22058 | -3/Proximity Caves | Learned location of 1 exit from Factory 22058 | -3/Proximity Caves | Learned location of 2 exits from Upper Caves 22323 | -3/Proximity Caves | Received a Behemoth hack from an annoying Tinkerer 22369 | -3/Proximity Caves | Discovered exit to Research (range 6) 22381 | -3/Proximity Caves | Entered Research 22381 | -3/Research | Evolved 2 slots: Propulsion x1, Utility x1 22382 | -3/Research | Identified exit to Armory 22382 | -3/Research | Identified exit to Testing 22383 | -3/Research | Identified exit to Research 22466 | -3/Research | Discovered exit to Research (range 13) 22581 | -3/Research | Revision forces began assault on 0b10 22641 | -3/Research | Met up with Revision 17++ 22671 | -3/Research | Found Prototype Device 22671 | -3/Research | Identified Exp. Sensor Array 22675 | -3/Research | Found Exp. Sensor Array 22716 | -3/Research | Identified Transdimensional Reconstructor 22750 | -3/Research | Fabricated Exp. Signal Interpreter? 22774 | -3/Research | Repaired Imp. Energy Mantle? 22818 | -3/Research | Fabricated Assault Drone Bay? 23081 | -3/Research | Research terminal network offline 23196 | -3/Research | Fabricated Nanosword? 23306 | -3/Research | Spotted Striker 23383 | -3/Research | Entered Armory 23384 | -3/Armory | Loaded intel: 26 trap records 23471 | -3/Armory | Found Gamma Bomb Array 23482 | -3/Armory | Found Prototype Launcher 23484 | -3/Armory | Found Prototype Launcher 23489 | -3/Armory | Identified Tesla Bomb Launcher (x2) 23528 | -3/Armory | Found Prototype Processor 23531 | -3/Armory | Found Prototype Processor 23532 | -3/Armory | Identified Spectral Analyzer (x2) 24177 | -3/Armory | Incoming investigation squad redirected 24322 | -3/Armory | Fabricated Nanosword? 24369 | -3/Armory | Incoming investigation squad redirected 24398 | -3/Armory | Fabricated Nanosword? 24503 | -3/Armory | Fabricated Nanosword? 24868 | -3/Armory | Incoming investigation squad redirected 24893 | -3/Armory | Fabricated Exp. Melee Analysis Suite? 24906 | -3/Armory | Warped through subspace to slip node 24906 | -3/Armory | Discovered new exit (range 1) 24906 | -3/Armory | Identified exit to Lab 25021 | -3/Armory | Entered Lab 25021 | -3/Lab | Discovered exit to Research (range 9) 25028 | -3/Lab | Hidden lab's door opened automatically 25028 | -3/Lab | Sensor layout match revealed 25052 | -3/Lab | Gained access to the hidden lab's interior 25208 | -3/Lab | Found Alien Artifact 25208 | -3/Lab | Identified Core Regenerator 25208 | -3/Lab | Used Core Regenerator, restored core integrity (+102) 25212 | -3/Lab | Found Integrated Dissipator 25212 | -3/Lab | Installed Integrated Dissipator, increased core heat dissipation (+20) 25216 | -3/Lab | Found Transdimensional Reconstructor 25222 | -3/Lab | Found Alien Artifact 25257 | -3/Lab | Found Prototype Energy Cannon 25263 | -3/Lab | Unable to decrypt terminal 25452 | -3/Lab | Found Prototype Protection 25452 | -3/Lab | Identified Hvy. Regenerative Plating 25459 | -3/Lab | Found Deep Network Scanner 25517 | -3/Lab | Entered Research 25517 | -2/Research | Warlord forces began assault on 0b10 25517 | -2/Research | Evolved 2 slots: Utility x1, Weapon x1 25556 | -2/Research | Met up with Warlord 25567 | -2/Research | Identified exit to Quarantine 25567 | -2/Research | Central database locked down 25590 | -2/Research | Identified Warp Cannon 25627 | -2/Research | Research machine network offline 25659 | -2/Research | Spotted B-90 Cyclops 25671 | -2/Research | Destroyed B-90 Cyclops 25684 | -2/Research | Discovered new exit (range 5) 25686 | -2/Research | Identified exit to Access 25826 | -2/Research | Found Adv. Force Booster 26106 | -2/Research | Borebot progress halted 26149 | -2/Research | Borebot progress halted 26358 | -2/Research | Build established: Wizard-Ninja 26374 | -2/Research | Found Fusion Bomb Launcher 26540 | -2/Research | Found Prototype Launcher 26545 | -2/Research | Identified Point Singularity Launcher 26575 | -2/Research | Entered Quarantine 26661 | -2/Quarantine | Found Alien Impact Weapon 26726 | -2/Quarantine | Found Alien Artifact 26746 | -2/Quarantine | Cryocooling Duct disabled 26761 | -2/Quarantine | Ambient heat levels rising (+20) 26761 | -2/Quarantine | Non-combat units ordered to evacuate 26862 | -2/Quarantine | Found Dimensional Node Initializer 26862 | -2/Quarantine | Initialized slip node 26879 | -2/Quarantine | Discovered exit to Access (range 14) 26903 | -2/Quarantine | Identified Core Reset Matrix 26903 | -2/Quarantine | Identified Core Stripper 26903 | -2/Quarantine | Identified Subatomic Replicator 26909 | -2/Quarantine | Warped through subspace to slip node 26913 | -2/Quarantine | Found Alien Artifact 26915 | -2/Quarantine | Found Alien Artifact 26963 | -2/Quarantine | Repaired Nanosword? 27020 | -2/Quarantine | Repaired Cmb. Antigrav System 27069 | -2/Quarantine | Repaired Corrupted Cmb. Antigrav System 27119 | -2/Quarantine | Repaired Corrupted Cmb. Antigrav System? 27271 | -2/Quarantine | Spotted Fortress 27306 | -2/Quarantine | Discovered new exit (range 6) 27308 | -2/Quarantine | Identified exit to Section 7 27312 | -2/Quarantine | Entered Section 7 27332 | -2/Section 7 | Found Alien Artifact 27365 | -2/Section 7 | Spotted S7 Guard 27529 | -2/Section 7 | Found Alien Artifact 27529 | -2/Section 7 | Identified Microwarp Drive 27570 | -2/Section 7 | Found Alien Artifact 27720 | -2/Section 7 | Identified Integrity Redistributor 27720 | -2/Section 7 | Identified Integrated Mediator 27720 | -2/Section 7 | Identified Hpw. Transdimensional Reconstructor (x2) 27720 | -2/Section 7 | Installed Integrated Mediator, increased core attachment efficiency. 27806 | -2/Section 7 | Build established: Wizard-Mutant 27822 | -2/Section 7 | Found Integrated Dissipator 27822 | -2/Section 7 | Installed Integrated Dissipator, increased core heat dissipation (+20) 27852 | -2/Section 7 | First assault squad dispatched 27944 | -2/Section 7 | Spotted B-99 Colossus 27965 | -2/Section 7 | Found Alien Artifact 27965 | -2/Section 7 | Identified Integrated Reactor 27965 | -2/Section 7 | Installed Integrated Reactor, increased core energy generation (+10) 27967 | -2/Section 7 | Found Integrated Reactor 27967 | -2/Section 7 | Installed Integrated Reactor, increased core energy generation (+10) 27993 | -2/Section 7 | Found Alien Artifact 28024 | -2/Section 7 | Found Integrity Redistributor 28037 | -2/Section 7 | Used Subatomic Replicator to replicate Alien Artifact 28039 | -2/Section 7 | Identified LRC Boosters 28039 | -2/Section 7 | Installed LRC Boosters, increased mass support (+10) 28041 | -2/Section 7 | Installed LRC Boosters, increased mass support (+10) 28164 | -2/Section 7 | Entered Access 28164 | -1/Access | Evolved 2 slots: Utility x1, Weapon x1 28242 | -1/Access | Identified exit to Command 28357 | -1/Access | Spotted B-99 Colossus 28835 | -1/Access | Destroyed B-99 Colossus 28904 | -1/Access | Fabricated Femtoactuators (x1) 29023 | -1/Access | Incoming investigation squad redirected 29040 | -1/Access | Fabricated Exp. Force Field (x1) 29290 | -1/Access | Entered Command 29353 | -1/Command | Identified exit to Surface 29473 | -1/Command | Disengaged cave seal 29473 | -1/Command | Derelicts emerged from the dark tunnel 29473 | -1/Command | Welcomed Warlord to Command 29808 | -1/Command | Build established: Machinist-Mutant 29894 | -1/Command | Warlord commented on Warlord statues 29904 | -1/Command | Spotted Combat Programmer 29904 | -1/Command | Spotted Combat Programmer 29905 | -1/Command | Spotted M Guard 29905 | -1/Command | Spotted M Guard 29921 | -1/Command | Destroyed M Guard 29954 | -1/Command | All MAIN.C guards destroyed 30422 | -1/Command | Found Prototype Launcher 30571 | -1/Command | Met MAIN.C 30585 | -1/Command | Warlord shut down involuntarily 30596 | -1/Command | Destroyed MAIN.C Shell 30597 | -1/Command | MAIN.C activated Command garrisons 30611 | -1/Command | Destroyed MAIN.C 30612 | -1/Command | Identified Ragnarok Missile Launcher 30612 | -1/Command | Discovered exit to Surface (range 47) 30612 | -1/Command | Discovered exit to Surface (range 103) 30612 | -1/Command | Extracted map data and part IDs from MAIN.C's data core 30614 | -1/Command | Found Exp. Powered Armor 30618 | -1/Command | Found Zero-point Reactor 30621 | -1/Command | Found Zero-point Reactor 30623 | -1/Command | Found Exp. Powered Armor 30625 | -1/Command | 0b10 Conduit disabled 30649 | -1/Command | Spotted B-99 Colossus 30707 | -1/Command | Found Exp. System Purifier 31717 | -1/Command | Found Exp. Core Analyzer 31869 | -1/Command | Build established: Scavenger-Mutant 32070 | -1/Command | Used Integrity Redistributor, redistributed integrity from core (-115) 32297 | -1/Command | Warped through subspace to slip node 32297 | -1/Command | Discovered new exit (range 4) 32300 | -1/Command | Found Exp. Core Analyzer 32303 | -1/Command | Entered Access_0 32304 | -1/Access_0 | Met Architect 32313 | -1/Access_0 | Destroyed A8 32321 | -1/Access_0 | Architect warped through subspace 32369 | -1/Access_0 | Architect warped through subspace 32379 | -1/Access_0 | Subspace Access Node disabled 32392 | -1/Access_0 | Found Exp. Phase Shifter 32397 | -1/Access_0 | Found Exp. Phase Shifter 32423 | -1/Access_0 | Architect warped through subspace 32468 | -1/Access_0 | Architect warped through subspace 32512 | -1/Access_0 | Architect warped through subspace 32528 | -1/Access_0 | A6 warped into view 32547 | -1/Access_0 | Destroyed A6 32552 | -1/Access_0 | Architect warped through subspace 32553 | -1/Access_0 | Found Corrupted Exp. Actuator Array 32588 | -1/Access_0 | Architect warped through subspace 32623 | -1/Access_0 | Architect warped through subspace 32663 | -1/Access_0 | Architect warped through subspace 32696 | -1/Access_0 | Architect warped through subspace 32726 | -1/Access_0 | Architect warped through subspace 32732 | -1/Access_0 | A5 warped into view 32740 | -1/Access_0 | Destroyed A5 32755 | -1/Access_0 | Architect warped through subspace 32776 | -1/Access_0 | Architect warped through subspace 32796 | -1/Access_0 | Architect warped through subspace 32822 | -1/Access_0 | Architect warped through subspace 32828 | -1/Access_0 | Subspace Access Node disabled 32845 | -1/Access_0 | Architect warped through subspace 32846 | -1/Access_0 | Used Integrity Redistributor, redistributed integrity from core (-149) 32847 | -1/Access_0 | Core integrity fell below 50% 32857 | -1/Access_0 | Architect warped through subspace 32872 | -1/Access_0 | Subspace Access Node disabled 32891 | -1/Access_0 | Architect warped through subspace 32908 | -1/Access_0 | Architect warped through subspace 32924 | -1/Access_0 | Subspace Access Node disabled 32993 | -1/Access_0 | Destroyed Architect 32994 | -1/Access_0 | Architect triggered a singularity event 32994 | -1/Access_0 | Found Hpw. Transdimensional Reconstructor 32996 | -1/Access_0 | Extracted unknown sensor trigger ID from Architect's data core 32996 | -1/Access_0 | Warped through subspace to slip node 32996 | -1/Access_0 | Discovered exit to Surface (range 8) 33000 | *** | Escaped singularity! Last Messages --------------- 32983_ Nanosword follow-up attack on Architect. 32984_ Penetrated by Quantum Shear. 32986_ Nanosword follow-up attack on Architect. 32989_ Quantum Shear penetrates Earth. 32990_ Nanosword follow-up attack on Architect. 32993_ Architect regenerates Exp. Propulsion Shielding. 32993_ Nanosword follow-up attack on Architect. 32993_ Architect: "If I can't win, no one wins!" 32993_ Architect destroyed. 32994_ A0_COM: Initiating irreversible singularity event. Goodbye. 32994_ Acquired Hpw. Transdimensional Reconstructor. 32995_ A0_COM: 10. 32996_ A0_COM: 9. 32996_ Acquired data core, extracted unknown sensor trigger ID. 32996_ Warped through subspace, drawn to slip node. 32996_ EXIT=FOUND: SURFACE 32997_ A0_COM: 8. 32998_ A0_COM: 7. 32999_ A0_COM: 6. 33000_ A0_COM: 5. Map ----- +----------------------------------------------------+ | | | | | | | | | | | | | | | | | | | | | | | | | | | | | | | | | ?????????????????????????????????????????????????? | | ?????????????????????????????????????????????????? | | ?????????????????????????????????????????????????? | | ?????????????????????????????????????????????????? | | ?????????????????????????????????????????????????? | | ?????????????????????????????????????????????????? | | ????????????????????????###??????????????????????? | | ???????????????????????## ##?????????????????????? | | ???????????????????????# #?????????????????????? | | ???????????????????????# @ #?????????????????????? | | ??????????????????????## #?????????????????????? | | ??????????????????????# #?????????????????????? | | ??????????????????????# ##?????????????????????? | | ??????????????????????## #?????????????????????? | | ??????????????????????# #?????????????????????? | | ??????????????????????# ##?????????????????????? | | ??????????????????????# < #?????????????????????? | | ??????????????????????# ##?????????????????????? | | ??????????????????????## #??????????????????????? | | ???????????????????????####??????????????????????? | | ?????????????????????????????????????????????????? | | ?????????????????????????????????????????????????? | | ?????????????????????????????????????????????????? | | ?????????????????????????????????????????????????? | | ?????????????????????????????????????????????????? | | ?????????????????????????????????????????????????? | | ?????????????????????????????????????????????????? | | ?????????????????????????????????????????????????? | | ?????????????????????????????????????????????????? | | ?????????????????????????????????????????????????? | | ?????????????????????????????????????????????????? | | ?????????????????????????????????????????????????? | | ?????????????????????????????????????????????????? | | ?????????????????????????????????????????????????? | +----------------------------------------------------+ Best States ------------- Heat Dissipation 112 Energy Generation 81 Energy Capacity 700 Matter Stores 300 Matter Capacity 300 Sight Range 23 Robot Scan Range 20 Terrain Scan Range 24 Terrain Scan Density 210 Jamming Range 16 Cloak Strength 4 Power Amplification 20 Armor Coverage 825 Resistance: TH 20 Core Shielding 20 Propulsion Shielding 66 Utility Shielding 90 Point Defense Rating 160 Melee Speed Boost 50 Phase Shifting 20 Evasion (%) 92 Targeting Accuracy 8 Melee Accuracy 20 Core Analysis 8 Armor Integrity Analysis 40 Recoil Reduction 4 Kinecelleration 40 Force Boost 40 Offensive Hacking 59 Defensive Hacking 16 Authchip Count 4 Trap Extractor Capacity 8 Item Schematics ----------------- Imp. Utility Shielding | -7/Factory | Hacked Adv. Hacking Suite | -7/Data Miner | Free Lgt. Regenerative Plating | -7/Data Miner | Free Combat Drone Bay | -7/Data Miner | Free Biomechanical Wings | -7/Data Miner | Free Gravity Neutralizer | -7/Data Miner | Free Cld. Plasma Cannon | -7/Data Miner | Free Arm. Medium Treads | -7/Data Miner | Free Imp. Transmission Jammer | -7/Data Miner | Free Hyp. Coil Gun | -7/Data Miner | Free Adv. Cryofiber Web | -7/Data Miner | Free Exp. Utility Shielding | -5/Factory | Hacked Cld. Nuclear Pulse Thruster | -5/Factory | Scanalyzed Cmb. Antigrav System | -5/Factory | Scanalyzed Lrn. Sensor Array | -4/Factory | Hacked Enh. Nova Cannon | -4/Factory | Hacked ECM Suite | -4/Factory | Hacked Exp. Heat Sink | -4/Zhirov | Free Exp. Optical Array | -4/Zhirov | Free Imp. Arc Thrower | -4/Zhirov | Free Assault Drone Bay | -4/Zhirov | Free Exp. Signal Interpreter | -3/Research | Hacked Nanoactuators | -3/Research | Hacked Weapon Mount | -3/Research | Hacked Exp. Sensor Array | -3/Research | Scanalyzed Nanosword | -3/Research | Hacked Exp. Melee Analysis Suite | -3/Armory | Hacked Cmb. Linear Gravjet | -2/Section 7 | Hacked Imp. Quantum Reactor | -2/Section 7 | Hacked Femtoactuators | -2/Section 7 | Hacked Exp. Force Field | -2/Section 7 | Hacked Robot Schematics ------------------ B-48 Gladiator | -7/Data Miner | Free M-28 Smith | -7/Data Miner | Free E-15 Imp | -7/Data Miner | Free Y-54 Guardian | -7/Data Miner | Free B-60 Warrior | -7/Data Miner | Free H-66 Slayer | -5/Factory | Hacked Fabricated ------------ Adv. Hacking Suite | x1 | -6/Factory H-66 Slayer | x2 | -6/Factory | Preloaded Cmb. Antigrav System | x2 | -5/Factory | Preloaded Adv. Hacking Suite | x1 | -5/Factory | Authchip Cmb. Antigrav System | x2 | -5/Factory | Authchip Combat Drone Bay | x1 | -5/Factory | Authchip Exp. Utility Shielding | x1 | -5/Factory | Authchip Cmb. Antigrav System | x2 | -5/Factory | Authchip Cmb. Antigrav System | x2 | -5/Factory | Authchip Combat Drone Bay | x1 | -5/Factory | Authchip Lrn. Sensor Array | x1 | -4/Factory Combat Drone Bay | x1 | -4/Factory | Authchip Lrn. Sensor Array | x1 | -4/Factory | Authchip Combat Drone Bay | x1 | -4/Factory ECM Suite | x1 | -4/Factory Exp. Signal Interpreter | x1 | -3/Research Assault Drone Bay | x1 | -3/Research Nanosword | x1 | -3/Research Nanosword | x1 | -3/Armory | Authchip Nanosword | x1 | -3/Armory | Authchip Nanosword | x1 | -3/Armory Exp. Melee Analysis Suite | x1 | -3/Armory Femtoactuators | x1 | -1/Access Exp. Force Field | x1 | -1/Access Alien Tech Used ----------------- Dimensional Node Initializer Integrated Dissipator Transdimensional Reconstructor Core Regenerator Core Stripper Microwarp Drive Integrated Mediator Integrated Reactor Subatomic Replicator LRC Boosters Integrity Redistributor High-powered Transdimensional Reconstructor Achievements -------------- None Challenges ------------ None Game ------ Seed NavigationRocketSaw Manual? 0 Play Time 15:31:17 Cumulative 1533.0 hours Start 2023.11.03 @ 20:14:53 End 2023.11.11 @ 23:24:06 Sessions 7 Manual Loads 0 Difficulty Rogue Special Mode None Game No. 421 Rogue 421 Adventurer 0 Explorer 0 Win Type 6 Total 89 Types 14/18/17/3/1/2/30/2/2 Lore% 96 Gallery% 97 Achievement% 89 Wizard Run 0 Options --------- ASCII 0 Keyboard 0 Movement Numpad Keybinds 0 Fullscreen 2 Font 24/Smallcaps Map View 76x50 Tactical HUD 1 Map Filters NONE Filters NONE Steam 1 RUN: 3a1dd96e-6870-42c5-a26a-270b53032cdc